Cogmind - Beta 16.1 @@@ ROGUE MODE // 2026.03.11 @ 13:02:04 Player: parasect Result: Destroyed by H-88 Terminator with KE Penetrator Performance ------------- Evolutions (8) 4000 Regions Visited (33) 6600 Robots Destroyed (533) 2665 Value Destroyed (27824) 27824 Prototype IDs (76) 1520 Alien Tech Used (8) 1600 Bonus (12524) 12524 TOTAL SCORE: 56733 Bonus ------- Triggered High Security 500 High Alert Combat Kills 5585 Follower Combat Kills 2696 Hunted by Unchained 500 Destroyed Unchained 1000 Awakened Behemoth Slayer 1000 Network Hubs Disabled 200 Met Data Miner 300 Met Imprinter 300 Met Warlord at Base 500 MAIN.C Attacked Warlord 500 Warlord Defense Kills 548 Built Enhanced Grunts 300 A7 Reached Mainframe 300 Met R17 at Cetus 500 Met R17 at Research 2000 Friendly Fire -4205 Cogmind --------- Core Integrity 0/1450 Matter 108/300 Energy 30/100 System Corruption 37% Temperature Cool (0) Movement Treading (160) Location -2/Testing Parts ------- > --- POWER (3) -------- (None) > --- PROPULSION (6) --- High-density Centrium Heavy Treads High-density Centrium Heavy Treads > --- UTILITY (11) ----- Advanced Coolant Injector Huge Storage Unit Experimental Targeting Computer Experimental Core Analyzer Medium Regenerative Plating SHELL Armor > --- WEAPON (3) ------- Compact Linear Accelerator > --- INVENTORY (25) --- Advanced Medium Treads Advanced Medium Treads Advanced Medium Treads Experimental Thermal Generator Experimental Energy Well (600) Matter Compressor (250) Advanced Sensor Array Advanced Kinecellerator Medium Regenerative Plating Heavy Regenerative Plating Graphene Brace Faulty Thermal Barrier High-powered Tractor Beam Enhanced Nova Cannon Enhanced Nova Cannon Heavy Machine Gun Heavy Machine Gun Micro-nuke Launcher CR-A16's Behemoth Slayer Peak State ------------ > --- POWER ------------ Reinforced Quantum Reactor Reinforced Quantum Reactor Matter Drive > --- PROPULSION ------- Advanced Heavy Siege Treads High-density Centrium Heavy Treads High-density Centrium Heavy Treads > --- UTILITY ---------- Advanced Cooling System Advanced Cooling System Huge Storage Unit Advanced Signal Interpreter Experimental Targeting Computer Experimental Core Analyzer Advanced Transmission Jammer Medium Regenerative Plating SHELL Armor > --- WEAPON ----------- Compact HERF Cannon Enhanced Hardcell Cannon Compact Linear Accelerator > --- INVENTORY -------- Light Antimatter Reactor Advanced Medium Treads Advanced Medium Treads Advanced Medium Treads Experimental Thermal Generator Advanced Coolant Injector Experimental Energy Well Matter Compressor Advanced Sensor Array Advanced Kinecellerator Medium Regenerative Plating Heavy Regenerative Plating Graphene Brace Thermal Barrier High-powered Tractor Beam Enhanced Nova Cannon Enhanced Nova Cannon Heavy Machine Gun Heavy Machine Gun Micro-nuke Launcher CR-A16's Behemoth Slayer [Rating: 210] Favorites ----------- Power Fission Core Engine Improved Deuterium Engine Power Core Fission Core Reactor Vortex Chain Reactor Propulsion Armored Treads Treads Armored Treads Leg Aluminum Leg Wheel Armored Huge Wheel Hover Unit Gravmag System Flight Unit Improved Q-thruster Utility Huge Storage Unit Device Advanced Sensor Array Storage Huge Storage Unit Processor Advanced Signal Interpreter Hackware Makeshift Hacking Suite Protection Centrium Medium Armor Plating Artifact Core Physics Calibrator Weapon Coil Gun Energy Gun Improved Medium Laser Energy Cannon Heavy Phase Cannon Ballistic Gun Coil Gun Ballistic Cannon Enhanced Hardcell Cannon Launcher Heavy Rocket Launcher Special Weapon Mining Laser Slashing Weapon Chainsword Piercing Weapon CR-A16's Pointy Stick Special Melee Weapon Advanced Datajack Build | -11 -10 -10 -9 -9 -9 -8 -8 -8 -7 -7 -7 -7 -6 -6 -6 -6 -6 -5 -5 -5 -5 -5 -4 -4 -4 -4 -4 -4 -3 -3 -3 -2 -2 ------- Run | Yrd Mat Min Mat Min Exi Min Mat Sto Fac Low Low Dat Pro Fac Low Low Zio Pro Fac Upp Upp War Pro Fac Ext Cet Arc Hub Res Qua Sec Res Tes Slots Evolved 16 | . . . 2 . . . 2 . 2 . . . . 2 . . . . 2 . . . . 2 . . . . 2 . . 2 . Power 2 | . . . . . . . . . . . . . . 1 . . . . . . . . . 1 . . . . . . . . . Propulsion 4 | . . . 1 . . . . . . . . . . 1 . . . . 1 . . . . 1 . . . . . . . . . Utility 9 | . . . 1 . . . 1 . 2 . . . . . . . . . 1 . . . . . . . . . 2 . . 2 . Weapon 1 | . . . . . . . 1 . . . . . . . . . . . . . . . . . . . . . . . . . . Parts Attached 446 | 1 12 4 25 4 . 1 17 28 24 7 1 . 6 32 4 1 10 6 8 5 . 12 3 26 14 16 7 7 47 9 19 81 9 Power 54 | . 2 1 2 . . 1 2 2 . 1 1 . . 3 1 1 . . 1 1 . 1 . 1 2 3 . . 8 2 2 14 2 Engine 15 | . 2 1 2 . . . 2 1 . . 1 . . 2 . . . . 1 1 . . . . . . . . . . 1 1 . Core 10 | . . . . . . 1 . 1 . 1 . . . 1 1 1 . . . . . . . 1 2 . . . 1 . . . . Reactor 29 | . . . . . . . . . . . . . . . . . . . . . . 1 . . . 3 . . 7 2 1 13 2 Propulsion 96 | . 3 . 8 1 . . 5 13 4 2 . . 2 6 1 . . 3 2 1 . 4 . 3 3 5 1 . 10 1 2 16 . Treads 87 | . 2 . 8 1 . . 5 13 4 2 . . 1 5 1 . . 3 2 1 . 4 . 3 3 4 1 . 10 1 2 11 . Leg 1 | . 1 . . . . . . . . . . . . . . . . . . . . . . . . . . . . . . . . Wheel 6 | . . . . . . . . . . . . . . 1 . . . . . . . . . . . 1 . . . . . 4 . Hover 1 | . . . . . . . . . . . . . 1 . . . . . . . . . . . . . . . . . . . . Flight 1 | . . . . . . . . . . . . . . . . . . . . . . . . . . . . . . . . 1 . Utility 183 | 1 3 2 8 2 . . 6 4 11 1 . . 4 18 1 . 3 1 4 3 . 7 . 12 7 3 3 4 17 3 11 37 7 Device 96 | 1 . . 3 1 . . 3 . 3 1 . . 1 11 1 . 3 1 4 1 . 5 . 9 4 1 1 2 8 1 6 22 3 Storage 14 | . 1 2 . . . . . 1 1 . . . . 1 . . . . . 1 . . . 2 . 1 . 1 1 1 . 1 . Processor 21 | . 1 . . . . . 1 . 3 . . . 1 2 . . . . . . . . . 1 . . . . 3 . 2 6 1 Hackware 14 | . . . . . . . . 1 1 . . . 1 2 . . . . . . . . . . 1 . 1 1 2 1 . 2 1 Protection 37 | . 1 . 5 1 . . 2 2 3 . . . 1 2 . . . . . 1 . 2 . . 2 1 1 . 3 . 2 6 2 Artifact 1 | . . . . . . . . . . . . . . . . . . . . . . . . . . . . . . . 1 . . Weapon 113 | . 4 1 7 1 . . 4 9 9 3 . . . 5 1 . 7 2 1 . . . 3 10 2 5 3 3 12 3 4 14 . Energy Gun 17 | . 1 . 3 . . . 1 1 2 . . . . 1 1 . . . . . . . . 1 1 1 . . 4 . . . . Energy Cannon 10 | . . . . . . . . . . . . . . 1 . . . 2 . . . . . . . . . 1 1 1 . 4 . Ballistic Gun 47 | . 1 1 4 . . . 3 6 2 1 . . . 2 . . 2 . 1 . . . 1 6 1 3 2 2 6 1 2 . . Ballistic Cannon 16 | . . . . . . . . . . . . . . . . . 2 . . . . . 1 2 . . . . 1 . 1 9 . Launcher 10 | . . . . 1 . . . 1 3 2 . . . . . . . . . . . . . 1 . . . . . 1 . 1 . Special Weapon 4 | . 1 . . . . . . . . . . . . 1 . . 1 . . . . . . . . 1 . . . . . . . Impact Weapon . | . . . . . . . . . . . . . . . . . . . . . . . . . . . . . . . . . . Slashing Weapon 4 | . . . . . . . . 1 1 . . . . . . . 1 . . . . . . . . . . . . . 1 . . Piercing Weapon 2 | . . . . . . . . . . . . . . . . . 1 . . . . . 1 . . . . . . . . . . Special Melee Weapon 3 | . 1 . . . . . . . 1 . . . . . . . . . . . . . . . . . 1 . . . . . . Unidentified Prototypes 54 | . . . 2 . . . . . 4 . . . . 1 . . 2 . . . . 5 . 7 . 5 . 4 7 1 5 8 3 Corrupted Parts 3 | . . . . . . . . . . . . . . . . . . . . . . . . . . . 2 . . . . 1 . System Corruption 12 | . . . . . . . . . . . . . . . . . . . . . . . . . . . 3 . . . . 9 . Parts Lost 88 | . 2 2 8 2 . . 2 1 2 2 . . . 1 . . . . . . . . . 1 . . . . 3 7 18 25 12 Power 13 | . 1 1 . . . . . . . 1 . . . . . . . . . . . . . . . . . . 2 1 2 1 4 Propulsion 17 | . 1 . 2 1 . . . . . . . . . . . . . . . . . . . . . . . . . . 4 8 1 Utility 40 | . . . 3 1 . . 1 . 2 1 . . . . . . . . . . . . . . . . . . 1 6 8 13 4 Weapon 18 | . . 1 3 . . . 1 1 . . . . . 1 . . . . . . . . . 1 . . . . . . 4 3 3 Highest Loss Streak 9 | . 1 1 3 1 . . 1 1 1 1 . . . 1 . . . . . . . . . 1 . . . . 2 4 5 9 7 To Critical Strikes 2 | . 1 . . . . . . . . . . . . . . . . . . . . . . 1 . . . . . . . . . Average Backups 22 | 6 13 14 21 21 23 24 24 24 19 23 24 24 23 24 24 24 24 25 24 24 25 24 24 24 24 23 22 22 22 20 20 21 16 Power . | 1 . . . 1 1 1 1 . 1 1 1 1 1 . 1 1 1 1 1 1 1 1 1 . . 1 1 1 . . 1 1 . Propulsion 6 | 4 2 3 5 6 6 6 10 10 7 13 13 13 13 9 9 9 9 8 7 8 8 8 8 7 7 4 2 2 2 2 2 2 1 Utility 8 | . 5 5 7 7 8 8 7 8 6 3 5 5 4 6 7 8 7 7 8 9 10 9 9 10 10 11 13 14 13 8 6 10 8 Weapon 5 | 1 3 4 6 5 8 7 6 5 4 4 5 5 4 6 7 6 7 8 7 6 6 6 6 5 5 5 5 4 5 5 7 6 6 Tool/Special . | . . . . . . . . . . . . . . . . . . . . . . . . . . . . . . . . . . Unused Backups 82 | . 5 2 11 1 . . 2 4 5 1 1 . . 3 . . 1 . 2 . . 1 . 1 3 2 1 . 7 1 3 15 10 Power 7 | . 1 . 1 . . . . 1 . . . . . . . . . . . . . . . . 2 . . . . . . 2 . Propulsion 13 | . 1 . 3 . . . 1 1 2 . . . . . . . . . 1 . . . . . . 1 . . . . . . 3 Utility 40 | . 2 2 4 1 . . . 1 2 . 1 . . 3 . . . . . . . 1 . 1 1 1 1 . 6 . 1 7 5 Weapon 21 | . 1 . 3 . . . 1 1 1 1 . . . . . . 1 . 1 . . . . . . . . . 1 . 2 6 2 Tool/Special 1 | . . . . . . . . . . . . . . . . . . . . . . . . . . . . . . 1 . . . Average Slot Usage (%) 94 | . 99 100 96 99 88 100 99 100 99 99 100 85 100 94 100 100 99 100 99 100 100 93 93 93 89 85 88 88 88 82 81 81 75 Engine 3 | . 13 14 11 11 11 . 4 7 . . 5 7 7 8 6 6 6 6 5 5 5 1 . . . . . . . . . . . Core 3 | . . . . . . 10 4 1 7 6 1 . . 3 6 6 6 6 5 5 5 1 . 4 5 5 5 5 3 2 . . . Reactor 3 | . . . . . . . . . . . . . . . . . . . . . . 3 5 5 5 6 9 10 10 10 13 12 11 Treads 22 | . 5 28 31 32 33 33 27 27 23 23 23 23 22 16 26 26 26 26 28 29 29 28 28 31 26 21 20 21 17 14 13 9 12 Device 15 | . 5 12 12 9 11 10 8 4 8 6 6 7 7 12 12 13 13 20 23 25 29 22 23 19 20 18 15 13 18 21 21 21 19 Storage 6 | . 14 14 11 11 11 11 9 9 7 7 7 7 7 6 6 6 6 6 5 5 5 5 5 5 5 5 5 5 4 4 4 4 4 Processor 7 | . 7 . . . . . 8 9 14 7 7 7 7 6 6 6 6 6 5 5 5 5 5 6 10 10 10 10 13 4 3 10 10 Hackware 4 | . . . . . . . . 4 7 15 9 7 7 9 13 13 12 6 5 2 . . . . . . . 1 . 1 4 4 1 Protection 4 | . 1 1 9 13 11 11 9 8 4 7 12 15 15 3 . . . . . . . 3 5 4 . 2 4 5 3 6 4 3 4 Energy Gun 4 | . 13 14 13 11 . 11 9 7 4 7 7 . 7 7 6 6 5 6 3 . . . . . . . . . 2 . . . . Energy Cannon 1 | . . . . . . . . . . . . . . . . . . 2 4 4 5 5 4 2 . . . . . . 1 4 3 Ballistic Gun 8 | . 13 14 6 10 . 11 17 17 12 7 7 . 7 5 6 6 6 6 7 11 11 6 11 11 15 13 10 13 9 6 3 . . Slashing Weapon 1 | . . . . . . . . 2 3 6 6 7 6 4 5 6 . . . . . . . . . . . . . . . . . Peak Build Rating 210 | 7 8 8 21 21 19 20 29 30 44 47 45 46 52 69 68 70 71 76 89 89 88 103 105 120 130 145 147 148 175 186 186 199 210 Average Rating 87 | 6 7 7 17 18 15 19 26 28 36 43 44 37 49 63 67 67 67 71 87 87 87 96 100 112 120 133 143 144 163 173 162 169 186 On Entrance 72 | 6 7 8 8 21 15 19 19 29 28 44 44 45 46 50 65 67 68 71 76 89 87 85 102 101 114 129 144 146 145 169 174 93 159 Avg Prop Armor Cover (%) 16 | . . . . . . . . . . . . . . 17 . . . . . . . 5 . . . . 25 . . . 4 10 . Naked Turns . | . . . . . . . . . . . . . . . . . . . . . . . . . . . . . . . . . . Heaviest Build 240 | 14 29 86 102 108 102 105 109 107 108 115 115 112 116 129 120 117 121 125 129 136 129 155 151 171 179 180 180 176 193 199 203 240 218 Greatest Support 260 | 20 40 40 63 60 60 60 60 66 66 63 60 60 60 82 82 82 82 104 134 134 134 134 120 140 180 194 194 194 210 210 220 245 260 Greatest Overweight (x) 55 | . 1 2 2 1 1 1 1 1 1 1 1 1 1 4 1 1 1 1 . 1 . 1 1 1 1 . 55 . 1 . 1 12 . Average Overweight (x) 1 | . . 1 1 1 1 1 1 . . 1 1 1 1 3 1 1 1 1 . . . . 1 1 . . 8 . . . . 1 . Largest Inventory Capacity 25 | 8 15 25 25 25 25 25 25 25 25 25 25 25 25 25 25 25 25 25 25 25 25 25 25 25 25 25 25 25 25 25 25 25 25 Average Capacity 24 | 8 14 22 25 25 25 25 25 24 20 25 25 25 25 25 25 25 25 25 25 25 25 25 25 25 25 25 25 25 25 25 25 25 25 Most Carried 25 | 7 15 17 25 23 23 25 25 25 25 25 25 25 25 25 25 25 25 25 25 25 25 25 25 25 25 25 25 25 25 25 25 25 23 Average Carried 23 | 6 13 14 21 21 22 24 24 24 19 24 24 24 24 24 24 24 24 24 24 24 25 24 24 24 24 24 24 24 24 23 22 23 16 Final Capacity 25 | 8 15 25 25 25 25 25 25 20 25 25 25 25 25 25 25 25 25 25 25 25 25 25 25 25 25 25 25 25 25 25 25 25 25 Final Carried 25 | 5 14 15 23 23 22 25 25 20 25 25 25 24 25 25 25 25 25 25 25 25 25 25 25 25 25 25 25 25 25 25 19 14 20 Class Distribution -------------------- 17% | Scavenger-Tank 15% | Scavenger-Mutant 13% | Hacker-Mutant 12% | Mutant 8% | Tank 6% | Derelict-Skirmisher 6% | Commander-Mutant 3% | Derelict-Mutant 3% | Scavenger-Gunner 3% | Commander-Tank 3% | Derelict-Tank Dominant Class ---------------- Mutant | -10/Materials Mutant | -10/Mines Mutant | -9/Materials Scavenger-Mutant | -9/Mines Scavenger-Mutant | -9/Exiles Scavenger-Mutant | -8/Mines Scavenger-Gunner | -8/Materials Scavenger-Gunner | -8/Storage Mutant | -7/Factory Scavenger-Mutant | -7/Lower Caves Scavenger-Mutant | -7/Lower Caves Scavenger-Mutant | -7/Data Miner Derelict-Mutant | -6/Proximity Caves Hacker-Mutant | -6/Factory Hacker-Mutant | -6/Lower Caves Hacker-Mutant | -6/Lower Caves Hacker-Mutant | -6/Zion Derelict-Tank | -5/Proximity Caves Derelict-Skirmisher | -5/Factory Derelict-Skirmisher | -5/Upper Caves Derelict-Skirmisher | -5/Upper Caves Tank | -5/Warlord Tank | -4/Proximity Caves Tank | -4/Factory Scavenger-Skirmisher | -4/Extension Commander-Tank | -4/Cetus Commander-Mutant | -4/Archives Scavenger-Tank | -4/Hub_04(d) Scavenger-Tank | -3/Research Scavenger-Tank | -3/Quarantine Scavenger-Tank | -3/Section 7 Scavenger-Tank | -2/Research Scavenger-Mutant | -2/Testing Resources | -11 -10 -10 -9 -9 -9 -8 -8 -8 -7 -7 -7 -7 -6 -6 -6 -6 -6 -5 -5 -5 -5 -5 -4 -4 -4 -4 -4 -4 -3 -3 -3 -2 -2 ----------- Run | Yrd Mat Min Mat Min Exi Min Mat Sto Fac Low Low Dat Pro Fac Low Low Zio Pro Fac Upp Upp War Pro Fac Ext Cet Arc Hub Res Qua Sec Res Tes Matter Collected 22172 | 236 315 524 546 279 . 83 638 612 1681 804 199 . 356 1375 459 116 140 305 180 268 40 294 394 1528 930 428 289 908 1913 1841 1577 2755 159 Remotely 6779 | . . . . . . . . . . . . . . . . . . . 112 . . 294 . 790 71 70 . 821 528 1348 1392 1194 159 Salvage Created 26952 | 154 535 313 1305 151 . . 1167 1007 1766 333 76 . 373 1199 246 99 . 332 227 83 211 215 339 3021 780 208 469 1279 1994 1934 1576 5167 393 Parts 1223 | 15 34 28 80 4 . 1 51 66 94 13 6 . 20 56 13 . . 12 8 4 . 10 21 127 38 6 18 65 103 78 49 184 19 Haulers Intercepted 17 | . 2 . 3 . . . 2 2 1 . . . . 1 . . . . . . . . . 4 . . . . 1 . . 1 . Recyclers Shooed 17 | . . 2 5 . . . . . 2 . . . . 1 . . . . . . . . . 5 1 . . . . 1 . . . Parts Field Recycled . | . . . . . . . . . . . . . . . . . . . . . . . . . . . . . . . . . . Retrieved Matter . | . . . . . . . . . . . . . . . . . . . . . . . . . . . . . . . . . . Parts Self-Destructed 77 | . . . . . . . . . . 11 5 . 14 . 8 . . 10 . 9 . . 20 . . . . . . . . . . Prevented 5 | . . . . . . . . . . . . . . . . 5 . . . . . . . . . . . . . . . . . Parts Restored . | . . . . . . . . . . . . . . . . . . . . . . . . . . . . . . . . . . Kills | -11 -10 -10 -9 -9 -9 -8 -8 -8 -7 -7 -7 -7 -6 -6 -6 -6 -6 -5 -5 -5 -5 -5 -4 -4 -4 -4 -4 -4 -3 -3 -3 -2 -2 ------- Run | Yrd Mat Min Mat Min Exi Min Mat Sto Fac Low Low Dat Pro Fac Low Low Zio Pro Fac Upp Upp War Pro Fac Ext Cet Arc Hub Res Qua Sec Res Tes Combat Hostiles Destroyed 442 | . 13 7 29 13 . . 17 19 29 12 4 . 11 16 1 . . 3 6 4 . 4 7 29 11 2 2 17 26 29 35 86 10 Melee 1 | . . . . . . . . . . . . . . . . . . 1 . . . . . . . . . . . . . . . Guns 243 | . 13 7 29 7 . . 17 16 25 6 . . 4 15 1 . . 1 1 . . 1 4 22 10 2 2 17 25 13 5 . . Cannons 93 | . . . . . . . . . . . . . . . . . . . . . . 2 . 6 . . . . . 11 22 42 10 AOE 68 | . . . . 6 . . . 3 3 6 4 . 7 1 . . . 1 5 4 . 1 2 . . . . . . 1 6 18 . Classes Destroyed 25 | 2 4 . 4 1 . . 1 1 1 1 . . . . 2 . . 2 . . . 2 . . . . . . 3 1 . . . Worker 11 | . . . 1 1 . . . 1 1 . . . . 3 . . . . . . . . . 2 . . . . . . . . 2 Builder 13 | . . . 1 . . . . . 1 . . . . 2 . . . . 1 . . . . 2 1 . . 1 1 3 . . . Tunneler 8 | 4 . 1 . . . 1 . . . . . . . . . . . . . . . . . 2 . . . . . . . . . Hauler 17 | . 2 . 3 . . . 2 2 1 . . . . 1 . . . . . . . . . 4 . . . . 1 . . 1 . Recycler 21 | 1 1 1 2 . . . 2 . 6 . . . . 3 . . . . . . . . . 5 . . . . . . . . . Minesweeper 3 | . . . . . . . . . . . . . . . 2 1 . . . . . . . . . . . . . . . . . Mechanic 1 | . . . . . . . . . . . . . . . . . . . . . . . . . . . . . . 1 . . . Operator 13 | . . . 1 . . . . 1 1 . . . . 1 . . . . . . . . . . . . 6 . . 1 2 . . Drone 3 | . . . . . . . . . . . . . . . . . . 1 . . . . 2 . . . . . . . . . . Watcher 12 | . 1 . 3 . . . 1 1 1 . . . . 1 . . . . . . . . . . 1 . . 1 . 2 . . . Swarmer 98 | . 6 3 12 . . . . 4 6 4 4 . 8 7 . . . . . 4 . . . 5 2 . . . 2 . 3 23 5 Grunt 149 | . 7 4 11 2 . . 10 8 16 7 . . . 4 1 . . . 5 . . 1 . 10 4 . . 4 5 11 17 19 3 Brawler 9 | . . . . . . . 1 . 1 . . . . . . . . . . . . . . . . . . 1 1 5 . . . Duelist 8 | . . . . . . . . 1 . . . . . . . . . . . . . 1 . . . . . . 1 5 . . . Protector 4 | . . . . . . . . . . . . . . . . . . . . . . 1 . . . . . 3 . . . . . Sentry 39 | . . . 6 . . . 6 6 1 . . . 1 . . . . . 1 . . . . 1 3 . 2 . . . 3 9 . Demolisher 4 | . . . . . . . . . . . . . . . . . . . . . . . . . . . . . 1 . . 3 . Hunter 27 | . . . . . . . . . . 1 . . . . . . . . . . . . . 6 . . . 1 2 2 2 11 2 Programmer 45 | . . . . . . . . . 5 . . . 2 5 . . . 1 . . . . 4 6 1 . . 2 2 4 9 4 . Behemoth 6 | . . . . . . . . . . . . . . . . . . 1 . . . . 1 1 1 . . . 1 . . 1 . Cetus Guard 2 | . . . . . . . . . . . . . . . . . . . . . . . . . . 2 . . . . . . . Quarantine Guard 1 | . . . . . . . . . . . . . . . . . . . . . . . . . . . . . . 1 . . . S7 Guard 1 | . . . . . . . . . . . . . . . . . . . . . . . . . . . . . . . 1 . . Lightning 6 | . . . . . . . . . . . . . . . . . . . . . . . . . . . . 6 . . . . . Striker 23 | . . . . . . . . . . . . . . . . . . . . . . 1 . . . . . . 8 . . 14 . Executioner 5 | . . . . . . . . . . . . . . . . . . . . . . . . . . . . . 3 . . 2 . Decomposer 5 | . . . . . . . . . . 1 1 . . . 2 . . 1 . . . . . . . . . . . . . . . Packrat 3 | . . . . . . . . . . . . . . . . . . . . . 3 . . . . . . . . . . . . Samaritan 4 | . . . . . . . . . . . . . . . 2 . . . . 1 . . . . . . . . . . . 1 . Assembled 11 | . . . . 11 . . . . . . . . . . . . . . . . . . . . . . . . . . . . . Savage 1 | . . . . . . . . . . . . . . . . . . . . . . . . . . . 1 . . . . . . Revision 1 | . . . . . . . . . . . . . . . . . . . . . . . . . . . . . 1 . . . . Best Kill Streak 13 | 3 3 3 10 9 . 1 5 8 8 4 4 . 4 7 2 1 . 1 6 4 . 2 2 10 2 1 2 6 6 9 6 13 6 Combat Bots Only 12 | . 3 3 6 9 . . 5 5 4 4 4 . 4 5 1 . . 1 5 4 . 2 2 7 2 1 2 5 6 8 5 12 5 Max Kills in Single Turn 6 | 1 2 1 2 3 . 1 1 3 2 2 3 . 3 2 1 1 . 1 2 2 1 2 1 3 1 1 2 3 2 2 2 6 2 Gunslinging 1 | . 1 . . . . . . . 1 1 . . . . . . . . . . . . . . . . 1 . . . . . . Exploded 6 | . . . . 3 . . . 3 2 2 3 . 3 1 . . . 1 2 2 . 1 1 . . . . . . 1 2 6 . Melee 1 | . . . . . . . . . . . . . . . . . . 1 . . . . . . . . . . . . . . . Uniques/NPCs Destroyed 2 | . . . . . . . . . . . . . . . . . . . . . . . . . . 1 . . . 1 . . . A7 (-4/Cetus) DW-4LL (-3/Quarantine) Combat | -11 -10 -10 -9 -9 -9 -8 -8 -8 -7 -7 -7 -7 -6 -6 -6 -6 -6 -5 -5 -5 -5 -5 -4 -4 -4 -4 -4 -4 -3 -3 -3 -2 -2 -------- Run | Yrd Mat Min Mat Min Exi Min Mat Sto Fac Low Low Dat Pro Fac Low Low Zio Pro Fac Upp Upp War Pro Fac Ext Cet Arc Hub Res Qua Sec Res Tes Hostile Shots Fired 3515 | . 79 24 142 20 . . 77 57 143 41 4 . 58 96 1 . . 43 11 10 . 5 32 257 84 10 6 113 218 252 708 728 296 Missed 906 | . 18 4 42 9 . . 29 15 35 8 2 . 18 26 . . . 11 . 5 . 2 10 92 13 4 . 17 23 68 191 169 95 Intercepted 6 | . . . . . . . . . . . . . . . . . . . . . . . . . . . . . 5 . . 1 . Hits 2609 | . 61 20 100 11 . . 48 42 108 33 2 . 40 70 1 . . 32 11 5 . 3 22 165 71 6 6 96 195 184 517 559 201 Melee 133 | . . . . 6 . . . . 3 . . . . . . . . . . . . . . . . . . . 43 31 . 50 . Projectile 2476 | . 61 20 100 5 . . 48 42 105 33 2 . 40 70 1 . . 32 11 5 . 3 22 165 71 6 6 96 152 153 517 509 201 AOE 20 | . . . . . . . . . . . . . . . . . . . . . . . . . . . . . 5 . 1 14 . Critical Strikes 148 | . 1 . 3 1 . . 3 . 5 . . . 1 5 . . . . 2 . . . 1 9 7 1 . 16 20 13 34 17 9 Actively Blocked 55 | . . . . . . . . . . . . . . . . . . . . . . . . . . . . . 2 4 32 17 . Part Disruptions 5 | . . . . . . . . . . . . . . 1 . . . . . . . 1 . . . . . 1 . . 2 . . Damage Taken 43284 | . 668 243 1192 401 . . 777 707 1463 490 28 . 343 772 15 . . 540 175 44 . 95 306 1124 545 65 75 982 4321 3404 7814 12102 4593 Core 3371 | . 92 35 108 26 . . 17 86 150 23 . . 20 68 . . . 57 30 . . . . 66 13 . 10 78 481 107 435 1237 232 Absorbed by Shields 14759 | . . . . . . . . . 244 . . . . 263 5 . . 192 64 16 . 36 112 1218 585 66 77 1029 1682 1263 3530 4377 . Reduced by Siege Mode 2386 | . . . . . . . . . . . . . . . . . . . . . . . . . . 5 . 104 448 245 394 1106 84 Redirected to Shielding 101 | . 3 20 78 . . . . . . . . . . . . . . . . . . . . . . . . . . . . . . Ignored by Resistances 2677 | . . . . . . . . . 86 53 8 . 72 148 . . . 121 . 12 . 6 94 611 479 23 9 638 317 . . . . Regen/Repaired (Parts) 1988 | . 74 . 124 . . . . . . . . . . 29 . . . . . . . 42 . . . . . . 313 426 92 194 694 Core Remaining (%) 71 | 100 . 49 . . . 66 . 81 . . . . 72 . . . . 85 . . . . 97 . . . . 85 . . 8 . . Volleys Fired 1448 | 15 61 19 124 30 . 1 51 47 73 14 3 . 14 44 1 . . 17 25 62 28 16 29 104 43 9 3 55 87 97 116 235 25 Largest 3 | 2 2 2 2 2 . 2 3 3 3 3 1 . 3 3 3 . . 3 3 2 1 3 3 3 3 3 3 3 3 3 3 3 2 Hottest 272 | 60 100 60 112 79 . 79 104 104 117 117 39 . 108 108 78 . . 85 90 90 90 150 90 150 90 93 103 105 175 140 140 272 116 Shots Fired 3062 | 30 108 38 241 50 . 4 153 135 211 36 5 . 31 117 3 . . 22 30 64 28 34 48 282 130 27 9 151 230 238 238 327 42 Gun 2111 | 30 104 38 235 43 . 4 153 134 208 32 2 . 25 111 3 . . 9 8 4 . 18 29 218 130 27 9 150 210 122 55 . . Cannon 862 | . . . . . . . . . . . . . . 1 . . . 9 17 58 28 13 17 64 . . . 1 20 114 178 300 42 Launcher 75 | . . . . 7 . . . 1 3 4 3 . 6 1 . . . 4 5 2 . 3 2 . . . . . . 2 5 27 . Special 14 | . 4 . 6 . . . . . . . . . . 4 . . . . . . . . . . . . . . . . . . . Kinetic 2152 | 15 57 19 130 23 . 3 102 95 166 22 1 . 16 68 2 . . 6 6 4 . 18 29 226 130 27 9 151 163 231 223 168 42 Thermal 745 | 15 51 19 111 20 . 1 51 39 42 10 1 . 9 44 1 . . 12 19 58 28 13 17 56 . . . . 67 . . 61 . Explosive 44 | . . . . 7 . . . 1 3 4 3 . 6 1 . . . 4 5 2 . 3 2 . . . . . . . . 3 . Electromagnetic 117 | . . . . . . . . . . . . . . . . . . . . . . . . . . . . . . 7 15 95 . Robot Hit Streak 40 | 7 9 13 19 9 . 2 26 23 20 13 . . 20 7 3 . . 8 7 3 5 5 8 15 29 24 7 17 39 40 22 13 16 Robot Miss Streak 8 | 3 3 1 3 5 . 2 3 4 7 2 . . 8 8 . . . 1 4 1 1 3 2 4 4 3 2 3 3 3 4 4 4 Penetration Max 2 | . . . . . . . . . . . . . . . . . . . . . . 2 . 1 1 1 . 1 1 2 1 . . Secondary Targets 38 | . 1 . 6 . . . 1 3 6 2 . . . . . . . . . . . . 1 1 1 2 1 6 7 . . . . Max Gunslinging Chain 1 | . 1 . 1 . . . 1 1 1 1 . . . . . . . . . . . . 1 1 1 1 1 1 1 . . . . Capacitor 53 | . . . . . . . . . . . . . . . . . . . . . . . . . . . . . . . . 53 . Shots Hit Robots 2151 | 19 73 29 170 23 4 2 115 96 177 27 1 . 21 93 10 4 . 19 7 4 7 15 22 179 96 38 22 98 183 168 165 237 27 Core Hits 1141 | 7 26 16 66 24 . . 40 41 97 45 5 . 24 54 5 2 . 11 14 2 2 15 10 91 39 13 12 53 80 79 81 169 18 Critical Kills 33 | . . . 1 . . . . . . . . . . . . . . 1 1 . . . . 3 4 . 1 13 7 2 . . . Critical Parts Destroyed 32 | . . . 1 1 . . 2 . . . . . . . . . . . . . . . 1 5 2 1 . 10 4 4 1 . . Critical Strikes 142 | . . . 9 3 . . 8 4 6 . . . 2 1 . . . 2 1 . . . 1 8 7 5 5 23 20 10 16 8 3 Burn 34 | . . . 7 2 . . 6 3 6 . . . 2 . . . . . . . . . . . . . . . 8 . . . . Meltdown 1 | . . . . . . . . . . . . . . . . . . 1 . . . . . . . . . . . . . . . Destroy 68 | . . . 2 1 . . 2 1 . . . . . . . . . . 1 . . . 1 8 7 1 1 23 12 7 1 . . Blast 26 | . . . . . . . . . . . . . . . . . . . . . . . . . . . . . . 3 14 6 3 Corrupt 2 | . . . . . . . . . . . . . . . . . . . . . . . . . . . . . . . 1 1 . Sever 1 | . . . . . . . . . . . . . . 1 . . . . . . . . . . . . . . . . . . . Impale 10 | . . . . . . . . . . . . . . . . . . 1 . . . . . . . 4 4 . . . . 1 . Melee Attacks 235 | . 1 . . . 4 . . 4 35 18 3 . 10 31 10 12 2 23 . . . . 1 4 1 33 29 2 5 1 1 5 . Impact . | . . . . . . . . . . . . . . . . . . . . . . . . . . . . . . . . . . Slashing 122 | . . . . . . . . 4 33 18 3 . 10 31 10 12 . . . . . . . . . . . . . . 1 . . Piercing 103 | . . . . . . . . . . . . . . . . . 2 23 . . . . 1 4 1 33 26 2 5 1 . 5 . Sneak Attacks 64 | . . . . . 4 . . 1 7 1 1 . . 10 8 2 . . . . . . . . . 17 12 . . . . 1 . Combat Hostiles . | . . . . . . . . . . . . . . . . . . . . . . . . . . . . . . . . . . Follow-up Attacks . | . . . . . . . . . . . . . . . . . . . . . . . . . . . . . . . . . . Damage Inflicted 69675 | 250 910 292 2225 762 . 70 1987 1882 3640 1211 306 . 1259 2548 631 250 . 749 926 569 242 1189 703 4811 2076 1450 954 2627 5138 7390 7001 14349 1278 Guns 33160 | 248 892 291 2203 364 . 36 1936 1573 2982 480 . . 390 1443 40 . . 156 41 67 . 387 492 3544 2076 566 205 2627 4924 3679 1518 . . Cannons 20898 | . . . . . . . . . . . . . . . . . . 156 . . 242 195 68 1255 . . . . 214 3151 4771 9568 1278 Explosions 10630 | . . . . 387 . . . 210 245 668 224 . 655 105 . . . 178 885 500 . 607 143 . . . . . . 514 638 4671 . Melee 4707 | . . . . . . . . 59 413 63 82 . 214 1000 591 250 . 259 . . . . . . . 884 749 . . 46 . 97 . Ramming 280 | 2 18 1 22 11 . 34 51 40 . . . . . . . . . . . 2 . . . 12 . . . . . . 74 13 . Kinetic 40958 | 150 483 113 1005 193 . 18 1168 967 2330 352 . . 281 872 20 . . 106 23 67 . 387 492 3710 2076 566 205 2627 3447 6723 5925 5374 1278 Thermal 11306 | 98 409 178 1198 171 . 18 768 606 715 128 . . 109 571 20 . . 206 18 . 242 195 68 1089 . . . . 1691 . . 2808 . Explosive 5649 | . . . . 387 . . . 210 182 668 224 . 655 105 . . . 178 885 500 . 607 143 . . . . . . 83 . 822 . Electromagnetic 6775 | . . . . . . . . . . . . . . . . . . . . . . . . . . . . . . 538 1002 5235 . Impact . | . . . . . . . . . . . . . . . . . . . . . . . . . . . . . . . . . . Slashing 2672 | . . . . . . . . 59 413 63 82 . 214 1000 591 250 . . . . . . . . . . . . . . . . . Piercing 2035 | . . . . . . . . . . . . . . . . . . 259 . . . . . . . 884 749 . . 46 . 97 . Highest Corruption 48 | . . . . 2 2 2 . . 4 4 4 4 5 1 1 1 1 1 . . . . 1 1 2 . 2 20 . 22 48 22 37 Average Corruption 5 | . . . . 2 2 2 . . 2 4 4 4 4 1 1 1 1 1 . . . . 1 1 1 . 1 15 . 20 28 3 22 Corruption Purged 11 | . . . . . . . . . . . . . . 1 . . . . . . . . . . 2 . 3 . . . 5 . . Corruption Blocked . | . . . . . . . . . . . . . . . . . . . . . . . . . . . . . . . . . . Effects 476 | . . . . 8 6 14 . . 25 37 34 3 50 11 14 9 2 10 . . . . 4 4 15 . . 21 . 49 89 46 25 Message Errors 104 | . . . . 2 3 3 . . 4 8 6 . 19 . 3 1 1 1 . . . . . 2 2 . . 4 . 11 22 7 5 Matter Fused 96 | . . . . 1 1 4 . . 7 9 6 . 9 4 6 3 . 1 . . . . . 1 1 . . 5 . 10 15 13 . Heat Flow Errors 46 | . . . . 2 . . . . 1 5 4 2 3 1 . 1 . 2 . . . . 2 . . . . 1 . 3 9 5 5 Energy Discharges 49 | . . . . 1 2 3 . . 3 4 6 . 4 1 2 1 . 2 . . . . . . 5 . . . . 4 4 3 4 Parts Rejected 5 | . . . . . . . . . . . . . . . . . . . . . . . . . . . . . . 1 3 . 1 Parts Fused 5 | . . . . . . . . . . 2 . . 1 . . . . . . . . . . . . . . . . 1 1 . . Data Loss (minor) 72 | . . . . 1 . 2 . . 2 5 7 . 6 4 3 2 1 1 . . . . 2 . 4 . . 4 . 8 7 9 4 Data Loss (major) 25 | . . . . . . . . . 4 2 3 . 2 1 . 1 . 1 . . . . . 1 . . . . . 1 6 2 1 Misfires 19 | . . . . 1 . 2 . . 2 2 2 . 2 . . . . . . . . . . . 1 . . . . 1 2 3 1 Alerts 10 | . . . . . . . . . . . . 1 3 . . . . 1 . . . . . . 2 . . 1 . 1 . 1 . Misdirections 9 | . . . . . . . . . . . . . . . . . . . . . . . . . . . . . . 2 4 . 3 Weapon Failures 36 | . . . . . . . . . 2 . . . 1 . . . . 1 . . . . . . . . . 6 . 6 16 3 1 Overload Shots . | . . . . . . . . . . . . . . . . . . . . . . . . . . . . . . . . . . Overflow Damage 2280 | . . . . 5 . . . 78 . 97 81 . 79 196 210 78 . 21 4 86 99 . 4 41 . 12 285 . . 186 296 422 . Projectiles 941 | . . . . . . . . . . . . . . . . . . 17 . . 99 . 4 41 . . . . . 160 247 373 . Explosions 297 | . . . . 5 . . . 41 . 38 2 . 43 . . . . 4 4 85 . . . . . . . . . 26 . 49 . Melee 1042 | . . . . . . . . 37 . 59 79 . 36 196 210 78 . . . 1 . . . . . 12 285 . . . 49 . . Knockbacks 110 | . . . . . . . . . . . . . . . . . . . . . . . . . . . . . . 14 41 41 14 Impact . | . . . . . . . . . . . . . . . . . . . . . . . . . . . . . . . . . . Kinetic 93 | . . . . . . . . . . . . . . . . . . . . . . . . . . . . . . 11 34 37 11 Secondary 17 | . . . . . . . . . . . . . . . . . . . . . . . . . . . . . . 3 7 4 3 Self-Inflicted Damage 797 | . . . . 125 . . . 46 . 61 . . . 54 . . . 66 29 . . 55 21 . . . . . . . 73 267 . Shots 45 | . . . . 5 . . . 1 . 4 . . . 1 . . . 1 1 . . 1 1 . . . . . . . 7 23 . Rammed 28 | . 1 . 6 1 . 1 5 3 1 . . . . . . . . . . 1 . . . 5 . . . . . . 2 2 . Targets Rammed 39 | 2 5 1 6 2 . 2 7 3 1 . . . . . . . . . . 1 . . . 5 . . . . . . 2 2 . Kicked 5 | 2 3 . . . . . . . . . . . . . . . . . . . . . . . . . . . . . . . . Crushed 6 | . 1 1 . 1 . 1 2 . . . . . . . . . . . . . . . . . . . . . . . . . . Highest Temperature 495 | 20 102 107 88 204 . 46 144 162 321 277 261 187 225 250 . 177 . 162 160 . . . 200 18 275 . . 365 341 198 360 495 239 Average Temperature 69 | 19 42 42 17 50 . 18 51 64 57 89 104 93 63 62 . 97 . 57 60 . . . 101 5 76 . . 107 71 75 82 82 76 Received Heat Transfer 5086 | . 270 126 465 36 . . 432 261 452 126 . . 48 141 6 . . 63 81 . . 12 6 77 201 . 4 89 216 244 934 625 171 Effects 17 | . . . . . . . . . 2 . . . . 3 . . . . . . . . . . . . . 1 2 . 5 4 . Shutdowns 1 | . . . . . . . . . . . . . . . . . . . . . . . . . . . . . . . . 1 . Energy Bleed 4 | . . . . . . . . . . . . . . . . . . . . . . . . . . . . 1 1 . 2 . . Interference 9 | . . . . . . . . . 2 . . . . 3 . . . . . . . . . . . . . . 1 . 3 . . Damage (major) 3 | . . . . . . . . . . . . . . . . . . . . . . . . . . . . . . . . 3 . Siege Activations 52 | . . . . . . . . . . . . . . . . . . . . . . . . . 3 2 1 3 8 8 12 14 1 Total Turns 1151 | . . . . . . . . . . . . . . . . . . . . . . . . . 24 18 1 156 171 201 209 340 31 Longest Duration 119 | . . . . . . . . . . . . . . . . . . . . . . . . . 10 12 1 119 68 54 35 77 31 Martial Activations . | . . . . . . . . . . . . . . . . . . . . . . . . . . . . . . . . . . Shielding Activations . | . . . . . . . . . . . . . . . . . . . . . . . . . . . . . . . . . . Robots Disrupted 2 | . . . . . . . . . . . . . . . . . . . . . . . . . . . . . . 1 . 1 . Combat Hostiles 2 | . . . . . . . . . . . . . . . . . . . . . . . . . . . . . . 1 . 1 . Robots Corrupted 33 | . . . . . . . . . . . . . . . . . . . . 1 . . . . . . . . . 4 3 25 . Combat Hostiles 31 | . . . . . . . . . . . . . . . . . . . . . . . . . . . . . . 4 2 25 . Parts Fried 52 | . . . . . . . . 1 . . . . . . . 1 . . . 1 . 1 . . . . . . . 7 8 33 . Impact Corruptions 7 | . . . . . . . . 1 . . . . . . . . . . . 1 . . . . . . . . . 1 3 1 . Robots Melted 2 | . . . . . . . . . 1 . . . . . . . . 1 . . . . . . . . . . . . . . . Combat Hostiles 1 | . . . . . . . . . 1 . . . . . . . . . . . . . . . . . . . . . . . . Parts Melted 29 | . 1 . 5 2 . . 3 . 1 . . . . 4 . . . . . . . . . 1 . . . . 8 1 . 3 . Heat Transferred 20071 | 225 900 400 3115 518 . 37 2109 1517 1789 222 . . 370 1110 37 . . 259 37 . 259 204 74 1147 . . . . 3590 . . 2152 . Parts Sabotaged 3 | . . . . . . . . . . . . . . . . . . . . . . . . . . . . . . 3 . . . Parts Stolen . | . . . . . . . . . . . . . . . . . . . . . . . . . . . . . . . . . . Parts Stripped . | . . . . . . . . . . . . . . . . . . . . . . . . . . . . . . . . . . Power Chain Reactions 7 | . . . . . . . . . . . . . . . . . . . . . . . . . . . . . . . . 7 . Alert | -11 -10 -10 -9 -9 -9 -8 -8 -8 -7 -7 -7 -7 -6 -6 -6 -6 -6 -5 -5 -5 -5 -5 -4 -4 -4 -4 -4 -4 -3 -3 -3 -2 -2 ------- Run | Yrd Mat Min Mat Min Exi Min Mat Sto Fac Low Low Dat Pro Fac Low Low Zio Pro Fac Upp Upp War Pro Fac Ext Cet Arc Hub Res Qua Sec Res Tes Maximum Alert Level 5 | . . . 1 . . . . 1 2 . . . . 1 . . . . 2 . . . . 2 4 3 2 2 2 3 3 5 4 Low Security (%) 62 | 100 100 100 79 100 . 100 100 85 65 . . . . 96 . . . . 3 . . . . 48 53 . 73 36 71 9 . 39 . Level 1 12 | . . . 20 . . . . 14 12 . . . . 3 . . . . 94 . . . . 20 17 . 19 13 14 9 10 10 . Level 2 13 | . . . . . . . . . 21 . . . . . . . . . 2 . . . . 31 11 . 6 49 13 64 66 12 . Level 3 7 | . . . . . . . . . . . . . . . . . . . . . . . . . 13 100 . . . 16 23 23 1 Level 4 2 | . . . . . . . . . . . . . . . . . . . . . . . . . 4 . . . . . . 9 98 Level 5 . | . . . . . . . . . . . . . . . . . . . . . . . . . . . . . . . . . . High Security . | . . . . . . . . . . . . . . . . . . . . . . . . . . . . . . . . 4 . Max Security . | . . . . . . . . . . . . . . . . . . . . . . . . . . . . . . . . . . Peak Influence 1970 | 10 79 75 266 65 . 35 175 238 685 . . . . 217 . . . . 450 . . . . 621 1336 867 510 514 459 939 736 1970 1322 Initial 1100 | . . . . 5 . . . 42 45 . . . . 34 . . . . 450 . . . . 150 277 743 308 . 234 249 327 351 1100 Average 243 | . 22 13 108 4 . 1 73 95 202 . . . . 32 . . . . 264 . . . . 275 316 796 112 287 134 567 545 554 1211 Influence Increases 17517 | 25 387 185 899 110 . 63 542 578 1089 280 90 . 280 572 30 10 . 80 797 143 . 420 140 1133 1660 385 290 1152 812 1219 1149 2570 427 Destroy 0b10 Robot/C 9540 | . 260 140 580 40 . 40 340 380 580 240 80 . 220 320 20 . . 40 120 100 . 220 100 580 760 160 80 440 520 560 700 1720 200 Destroy 0b10 Robot/NC 615 | 25 20 10 55 5 . 5 25 25 55 . . . 5 55 10 10 . 20 5 . . 5 10 75 35 10 35 40 10 35 10 10 10 Destroy Leader 1794 | . 46 30 152 10 . 10 106 96 134 40 10 . 40 94 . . . 20 20 10 . . 30 118 56 . . 94 92 104 140 312 30 Allied During Kill 1325 | . . . . . . 8 . . . . . . . . . . . . . 3 . 75 . . 729 170 115 225 . . . . . Successful Hack 343 | . 27 5 33 . . . 7 16 20 . . . . 21 . . . . 39 . . . . 4 . . . . 80 2 40 . 49 Select Force Hacks 90 | . 30 . 60 . . . . . . . . . . . . . . . . . . . . . . . . . . . . . . Disable Machine 1005 | . . . 15 15 . . 15 30 90 . . . . 30 . . . . 75 . . . . 90 . 15 30 165 . 225 120 30 60 Anti-Garrison Action 150 | . . . . . . . . . . . . . . . . . . . . . . . . . . . . . . 150 . . . Destroy Structure 1245 | . 4 . 4 40 . . 4 16 75 . . . . 37 . . . . 88 . . . . 86 80 30 30 188 50 128 94 273 18 Advance Influence 600 | . . . . . . . . . . . . . . . . . . . 450 . . . . 150 . . . . . . . . . Partial Spotted 15 | . . . . . . . . . 15 . . . . . . . . . . . . . . . . . . . . . . . . Lose Combat Pursuer 795 | . . . . . . . 45 15 120 . . . 15 15 . . . . . 30 . 120 . 30 . . . . 60 15 45 225 60 Influence Decreases 16323 | 25 387 185 884 125 . 63 442 577 513 885 162 . 225 574 83 10 . 80 576 359 5 82 478 566 899 943 1057 709 815 1080 1107 1264 1163 Entered New Map 3974 | . . . . 10 . . . 58 56 252 15 . . 21 20 . . . . 83 2 . 338 . 290 585 462 3 212 194 255 273 845 Time Decay 9526 | 25 376 175 506 111 . 40 422 346 437 613 147 . 225 356 63 10 . 75 326 256 3 62 140 556 529 318 595 264 583 506 522 741 198 Search Patrol Dispatched 100 | . . . . . . . . . . . . . . . . . . . 100 . . . . . . . . . . . . . . Lost Part 815 | . 11 10 70 4 . . 20 10 20 20 . . . . . . . . . . . . . 10 . . . . 20 70 180 250 120 Lost Ally 660 | . . . 10 . . 23 . . . . . . . 10 . . . 5 . 20 . 20 . . 80 40 . 442 . 10 . . . Purge Threat 1248 | . . . 298 . . . . 163 . . . . . 187 . . . . 150 . . . . . . . . . . 300 150 . . Squads Dispatched 74 | . 2 . 4 . . . 1 1 7 . . . . 8 . . . . 1 . . . . 8 1 . . 4 3 8 19 . 7 Investigation 7 | . 1 . 2 . . . . . 1 . . . . . . . . . . . . . . . . . . . . . 1 . 2 Extermination 19 | . . . . . . . . . 4 . . . . 3 . . . . 1 . . . . 3 . . . 1 . 2 4 . 1 Reinforcement 31 | . 1 . 2 . . . 1 1 1 . . . . 2 . . . . . . . . . 4 . . . 2 3 3 7 . 4 Assault 8 | . . . . . . . . . 1 . . . . . . . . . . . . . . 1 1 . . 1 . 3 1 . . Garrison 9 | . . . . . . . . . . . . . . 3 . . . . . . . . . . . . . . . . 6 . . Intercept . | . . . . . . . . . . . . . . . . . . . . . . . . . . . . . . . . . . Searches Triggered 1 | . . . . . . . . . . . . . . . . . . . 1 . . . . . . . . . . . . . . Unchained Authorized 1 | . . . . . . . . . . . . . . . . . . . . . . . . . . . . . . 1 . . . Data Miner Redirects 5 | . . . . . . . . . . . . . . . . . . . . . . . . 1 . . . . . . 2 . 2 Construction Impeded 4 | . . . . . . . . . . . . . . 2 . . . . . . . . . . . . . 1 . . 1 . . Haulers Reinforced 4 | . . . . . . . . . . . . . . . . . . . . . . . . 3 . . . . 1 . . . . Active Scanning Responses . | . . . . . . . . . . . . . . . . . . . . . . . . . . . . . . . . . . Cargo Convoy Interrupts . | . . . . . . . . . . . . . . . . . . . . . . . . . . . . . . . . . . Stealth | -11 -10 -10 -9 -9 -9 -8 -8 -8 -7 -7 -7 -7 -6 -6 -6 -6 -6 -5 -5 -5 -5 -5 -4 -4 -4 -4 -4 -4 -3 -3 -3 -2 -2 --------- Run | Yrd Mat Min Mat Min Exi Min Mat Sto Fac Low Low Dat Pro Fac Low Low Zio Pro Fac Upp Upp War Pro Fac Ext Cet Arc Hub Res Qua Sec Res Tes Distress Signals 38 | . . . 5 . . . 2 . 2 . . . . 3 . . . 1 1 . . 1 . 1 1 2 . 2 6 1 2 7 1 Communications Jammed 145 | . . . . . . . . . . . . . . . . . . . 11 . . 7 1 14 95 . . . . 16 . . 1 Distress Signals 144 | . . . . . . . . . . . . . . . . . . . 11 . . 7 . 14 95 . . . . 16 . . 1 Times Spotted 736 | . 23 7 45 14 . 1 27 24 49 9 4 . 10 25 1 . . 5 8 6 . 45 6 38 28 10 9 26 43 46 63 138 26 Peak Tracking Total 20 | . 3 3 6 3 . 1 7 4 5 4 1 . 4 4 1 . . 1 5 5 . 20 3 4 5 5 3 6 6 6 19 16 10 Tactical Retreats 41 | . . . . 1 . . 2 1 4 . . . 1 1 . . . . . 2 . 3 . 2 . . . . 4 1 3 13 3 Traps | -11 -10 -10 -9 -9 -9 -8 -8 -8 -7 -7 -7 -7 -6 -6 -6 -6 -6 -5 -5 -5 -5 -5 -4 -4 -4 -4 -4 -4 -3 -3 -3 -2 -2 ------- Run | Yrd Mat Min Mat Min Exi Min Mat Sto Fac Low Low Dat Pro Fac Low Low Zio Pro Fac Upp Upp War Pro Fac Ext Cet Arc Hub Res Qua Sec Res Tes Traps Triggered 18 | . . . 3 . . . 1 1 2 . . . . 2 . . . . . . . . . . . . . . 4 2 2 . 1 Indirectly 1 | . . . . . . . . . . . . . . . . . . . . . . . . . . . . . . . 1 . . Trap Hack Attempts 8 | . 8 . . . . . . . . . . . . . . . . . . . . . . . . . . . . . . . . Triggered . | . . . . . . . . . . . . . . . . . . . . . . . . . . . . . . . . . . Disarmed . | . . . . . . . . . . . . . . . . . . . . . . . . . . . . . . . . . . Reprogrammed 1 | . 1 . . . . . . . . . . . . . . . . . . . . . . . . . . . . . . . . Reused 1 | . . . . . . . . . . . . . . . . 1 . . . . . . . . . . . . . . . . . Traps Extracted . | . . . . . . . . . . . . . . . . . . . . . . . . . . . . . . . . . . Installed 1 | . . . . . . . . . . . . . . . . 1 . . . . . . . . . . . . . . . . . Triggered 1 | . . . . . . . . . . . . . . . . 1 . . . . . . . . . . . . . . . . . Most Traps Carried 6 | . . . . . . . . . . . . . . . 5 6 6 6 6 6 . . . . . . . . . . . . . Machines | -11 -10 -10 -9 -9 -9 -8 -8 -8 -7 -7 -7 -7 -6 -6 -6 -6 -6 -5 -5 -5 -5 -5 -4 -4 -4 -4 -4 -4 -3 -3 -3 -2 -2 ---------- Run | Yrd Mat Min Mat Min Exi Min Mat Sto Fac Low Low Dat Pro Fac Low Low Zio Pro Fac Upp Upp War Pro Fac Ext Cet Arc Hub Res Qua Sec Res Tes Machines Disabled 69 | . . . 1 1 . . 1 2 6 . . . . 2 . . . . 5 . . . . 6 1 1 2 11 . 16 8 2 4 Max in Single Turn 5 | . . . 1 1 . . 1 1 5 . . . . 1 . . . . 3 . . . . 1 . 1 . 2 . 2 1 1 1 Garrison Access 7 | . . . . . . . . 1 1 . . . . 1 . . . . . . . . . . . . . 1 . 1 . 2 . Network Hub 1 | . . . . . . . . . . . . . . . . . . . . . . . . . . . . 1 . . . . . Machines Repaired . | . . . . . . . . . . . . . . . . . . . . . . . . . . . . . . . . . . Machines Dismantled 2 | . . . . . . . . . . . . . . . . . . . . . . . . . . 1 . 1 . . . . . Machines Sabotaged . | . . . . . . . . . . . . . . . . . . . . . . . . . . . . . . . . . . Overloaded Fab Kills . | . . . . . . . . . . . . . . . . . . . . . . . . . . . . . . . . . . Hacking | -11 -10 -10 -9 -9 -9 -8 -8 -8 -7 -7 -7 -7 -6 -6 -6 -6 -6 -5 -5 -5 -5 -5 -4 -4 -4 -4 -4 -4 -3 -3 -3 -2 -2 --------- Run | Yrd Mat Min Mat Min Exi Min Mat Sto Fac Low Low Dat Pro Fac Low Low Zio Pro Fac Upp Upp War Pro Fac Ext Cet Arc Hub Res Qua Sec Res Tes Machines Accessed 101 | . 8 1 10 . 1 . 3 8 10 . 1 3 . 10 . . . . 4 2 1 6 . 3 2 . . 1 7 5 8 1 6 Terminals 52 | . 6 1 5 . . . 2 7 5 . . . . 5 . . . . 4 . . . . 2 2 . . . . 2 6 . 5 Fabricators 3 | . . . . . . . . . . . . . . 1 . . . . . . . . . . . . . . 1 . . . 1 Repair Stations 8 | . 1 . 1 . . . . . . . . . . 2 . . . . . . . . . . . . . . 3 1 . . . Recycling Units 3 | . 1 . 2 . . . . . . . . . . . . . . . . . . . . . . . . . . . . . . Scanalyzers 13 | . . . 2 . . . 1 . 3 . . . . 1 . . . . . . . . . 1 . . . . 2 1 2 . . Garrison Access 8 | . . . . . . . . 1 2 . . . . 1 . . . . . . . . . . . . . 1 1 1 . 1 . Total Hacks 277 | . 19 1 21 . 1 . 10 22 23 . 1 24 . 25 . . . . 13 6 1 18 . 6 3 . . 1 21 12 30 1 18 Successful 158 | . 10 1 17 . 1 . 5 14 7 . 1 24 . 15 . . . . 6 6 1 18 . 1 . . . 1 12 4 9 1 4 Failed 117 | . 8 . 4 . . . 5 8 16 . . . . 10 . . . . 7 . . . . 5 3 . . . 8 8 21 . 14 Catastrophic 27 | . 2 . . . . . 1 . 4 . . . . . . . . . 1 . . . . 3 1 . . . 1 3 5 . 6 Database Lockouts 2 | . 1 . . . . . . . . . . . . . . . . . . . . . . . . . . . 1 . . . . Manual 83 | . 16 1 8 . . . 3 9 9 . . . . 10 . . . . 8 . . 1 . 2 1 1 . . 2 1 6 . 5 Terminals 139 | . 15 1 11 . . . 5 20 12 . . . . 16 . . . . 13 . . . . 3 3 . . . . 5 20 . 15 Fabricators 8 | . . . . . . . . . . . . . . 2 . . . . . . . . . . . . . . 3 . . . 3 Repair Stations 15 | . 2 . 2 . . . . . . . . . . 3 . . . . . . . . . . . . . . 6 2 . . . Recycling Units 4 | . 2 . 2 . . . . . . . . . . . . . . . . . . . . . . . . . . . . . . Scanalyzers 47 | . . . 6 . . . 5 . 7 . . . . 3 . . . . . . . . . 3 . . . . 9 4 10 . . Garrison Access 13 | . . . . . . . . 2 4 . . . . 1 . . . . . . . . . . . . . 1 3 1 . 1 . Terminal Hacks 99 | . 5 1 5 . 1 . 1 12 1 . 1 24 . 8 . . . . 5 6 1 18 . 1 . . . . . 2 5 . 2 Record 32 | . . . . . 1 . . . . . . 6 . . . . . . . 5 . 18 . . . . . . . 2 . . . Part Schematic 12 | . 1 . . . . . . . . . . 11 . . . . . . . . . . . . . . . . . . . . . Robot Schematic 4 | . . . . . . . . . . . . 4 . . . . . . . . . . . . . . . . . . . . . Robot Analysis 7 | . 3 . 1 . . . . 2 . . . . . 1 . . . . . . . . . . . . . . . . . . . Prototype ID Bank 3 | . . . . . . . . . . . . 3 . . . . . . . . . . . . . . . . . . . . . Open Door 8 | . . . . . . . . 2 . . 1 . . . . . . . . 1 1 . . 1 . . . . . . 2 . . Branch Access Points 3 | . . . . . . . 1 . 1 . . . . 1 . . . . . . . . . . . . . . . . . . . Emergency Access Points 2 | . . . . . . . . 1 . . . . . . . . . . . . . . . . . . . . . . 1 . . Terminal Index 2 | . . . . . . . . . . . . . . . . . . . 1 . . . . . . . . . . . . . 1 Alert Level 2 | . . . . . . . . 1 . . . . . . . . . . 1 . . . . . . . . . . . . . . Unreport Threat 10 | . . . 3 . . . . 2 . . . . . 3 . . . . 1 . . . . . . . . . . . 1 . . Locate Traps 6 | . 1 . . . . . . 2 . . . . . 1 . . . . 2 . . . . . . . . . . . . . . Registered Components 1 | . . . . . . . . . . . . . . 1 . . . . . . . . . . . . . . . . . . . Zone Layout 7 | . . 1 1 . . . . 2 . . . . . 1 . . . . . . . . . . . . . . . . 1 . 1 Fabricator Hacks 3 | . . . . . . . . . . . . . . 1 . . . . . . . . . . . . . . 1 . . . 1 Network Status 3 | . . . . . . . . . . . . . . 1 . . . . . . . . . . . . . . 1 . . . 1 Repair Station Hacks 12 | . 2 . 2 . . . . . . . . . . 2 . . . . . . . . . . . . . . 4 2 . . . Scan Component 6 | . 1 . 1 . . . . . . . . . . 1 . . . . . . . . . . . . . . 2 1 . . . Repair 6 | . 1 . 1 . . . . . . . . . . 1 . . . . . . . . . . . . . . 2 1 . . . Recycling Unit Hacks . | . . . . . . . . . . . . . . . . . . . . . . . . . . . . . . . . . . Scanalyzer 27 | . . . 6 . . . 4 . 4 . . . . 3 . . . . . . . . . . . . . . 6 . 4 . . Insert Component 8 | . . . 1 . . . 1 . . . . . . . . . . . . . . . . . . . . . 3 . 3 . . Analyze 4 | . . . 1 . . . 2 . . . . . . . . . . . . . . . . . . . . . 1 . . . . Retrieve Study 15 | . . . 4 . . . 1 . 4 . . . . 3 . . . . . . . . . . . . . . 2 . 1 . . Garrison Access Hacks 5 | . . . . . . . . 1 1 . . . . 1 . . . . . . . . . . . . . 1 . . . 1 . Seal Access 5 | . . . . . . . . 1 1 . . . . 1 . . . . . . . . . . . . . 1 . . . 1 . Unauthorized Hacks 12 | . 3 . 4 . . . . 1 1 . . . . . . . . . 1 . . . . . . . . . 1 . . . 1 Terminals 8 | . 2 . 2 . . . . 1 1 . . . . . . . . . 1 . . . . . . . . . . . . . 1 Assimilate 1 | . 1 . . . . . . . . . . . . . . . . . . . . . . . . . . . . . . . . Botnet 6 | . 1 . 1 . . . . 1 1 . . . . . . . . . 1 . . . . . . . . . . . . . 1 Operators 1 | . . . 1 . . . . . . . . . . . . . . . . . . . . . . . . . . . . . . Fabricators 1 | . . . . . . . . . . . . . . . . . . . . . . . . . . . . . 1 . . . . Liberate 1 | . . . . . . . . . . . . . . . . . . . . . . . . . . . . . 1 . . . . Repair Stations . | . . . . . . . . . . . . . . . . . . . . . . . . . . . . . . . . . . Recycling Units 3 | . 1 . 2 . . . . . . . . . . . . . . . . . . . . . . . . . . . . . . Tunnel 3 | . 1 . 2 . . . . . . . . . . . . . . . . . . . . . . . . . . . . . . Scanalyzers . | . . . . . . . . . . . . . . . . . . . . . . . . . . . . . . . . . . Garrison Access . | . . . . . . . . . . . . . . . . . . . . . . . . . . . . . . . . . . Data Cores Recovered 1 | . . . . . . . . . . . . . . . . . . . . . . . . . . . . . . 1 . . . Used 1 | . . . . . . . . . . . . . . . . . . . . . . . . . . . . . . 1 . . . Hacking Detections 65 | . 5 . 5 . . . 2 5 9 . . . . 9 . . . . 4 . . . . 2 2 . . . 5 4 7 . 6 Full Trace Events 1 | . . . . . . . . . . . . . . . . . . . . . . . . . . . . . . . . . 1 Feedback Events . | . . . . . . . . . . . . . . . . . . . . . . . . . . . . . . . . . . Feedback Blocked . | . . . . . . . . . . . . . . . . . . . . . . . . . . . . . . . . . . Robot Schematics Acquired 8 | . . . . . . . . . . . . 4 . . . . 4 . . . . . . . . . . . . . . . . Robots Built . | . . . . . . . . . . . . . . . . . . . . . . . . . . . . . . . . . . Authchips . | . . . . . . . . . . . . . . . . . . . . . . . . . . . . . . . . . . Time . | . . . . . . . . . . . . . . . . . . . . . . . . . . . . . . . . . . Total Robot Build Rating . | . . . . . . . . . . . . . . . . . . . . . . . . . . . . . . . . . . Part Schematics Acquired 27 | . 1 . 1 . . . 1 . . . . 11 . . . . 12 . . . . . . . . . . . 1 . . . . Parts Built . | . . . . . . . . . . . . . . . . . . . . . . . . . . . . . . . . . . Authchips . | . . . . . . . . . . . . . . . . . . . . . . . . . . . . . . . . . . Time . | . . . . . . . . . . . . . . . . . . . . . . . . . . . . . . . . . . Total Part Build Rating . | . . . . . . . . . . . . . . . . . . . . . . . . . . . . . . . . . . Part Studies Acquired 15 | . . . 4 . . . 1 . 4 . . . . 3 . . . . . . . . . . . . . . 2 . 1 . . Parts Repaired 6 | . 1 . 1 . . . . . . . . . . 1 . . . . . . . . . . . . . . 2 1 . . . Time 243 | . 26 . 26 . . . . . . . . . . 44 . . . . . . . . . . . . . . 79 68 . . . Parts Recycled . | . . . . . . . . . . . . . . . . . . . . . . . . . . . . . . . . . . Recycled Matter . | . . . . . . . . . . . . . . . . . . . . . . . . . . . . . . . . . . Retrieved Matter . | . . . . . . . . . . . . . . . . . . . . . . . . . . . . . . . . . . Retrieved Components . | . . . . . . . . . . . . . . . . . . . . . . . . . . . . . . . . . . Parts Scanalyzed 3 | . . . 1 . . . 1 . . . . . . . . . . . . . . . . . . . . . 1 . . . . Part Schematics Acquired 3 | . . . 1 . . . 1 . . . . . . . . . . . . . . . . . . . . . 1 . . . . Parts Damaged . | . . . . . . . . . . . . . . . . . . . . . . . . . . . . . . . . . . Bothacking | -11 -10 -10 -9 -9 -9 -8 -8 -8 -7 -7 -7 -7 -6 -6 -6 -6 -6 -5 -5 -5 -5 -5 -4 -4 -4 -4 -4 -4 -3 -3 -3 -2 -2 ------------ Run | Yrd Mat Min Mat Min Exi Min Mat Sto Fac Low Low Dat Pro Fac Low Low Zio Pro Fac Upp Upp War Pro Fac Ext Cet Arc Hub Res Qua Sec Res Tes Used RIF Installer . | . . . . . . . . . . . . . . . . . . . . . . . . . . . . . . . . . . Robots Hacked 9 | . 1 . . . 4 . . . . . . . . 3 . . . . . . . . . . . . 1 . . . . . . Non-combat 8 | . 1 . . . 3 . . . . . . . . 3 . . . . . . . . . . . . 1 . . . . . . Combat 1 | . . . . . 1 . . . . . . . . . . . . . . . . . . . . . . . . . . . . Robot Hacks Applied 11 | . 1 . . . 4 . . . . . . . . 3 . . . . . . . . . . . . 3 . . . . . . parse_system 5 | . 1 . . . 4 . . . . . . . . . . . . . . . . . . . . . . . . . . . . find_chute 3 | . . . . . . . . . . . . . . 3 . . . . . . . . . . . . . . . . . . . check_alert 3 | . . . . . . . . . . . . . . . . . . . . . . . . . . . 3 . . . . . . Relay Couplers Released 1 | . . . . . . . . . . . . . . . . . . . . . . . . . . . . . . 1 . . . Machine Destruction 1 | . . . . . . . . . . . . . . . . . . . . . . . . . . . . . . 1 . . . Fabnet Peak Effective % . | . . . . . . . . . . . . . . . . . . . . . . . . . . . . . . . . . . Robots Rewired 25 | . . . . . . . . . . . . . . . . . . . . . . 5 . . 20 . . . . . . . . Allies Hacked 1 | . . . . . . . . . . . . . . . . . . . . . . . . . 1 . . . . . . . . Hacks Repelled . | . . . . . . . . . . . . . . . . . . . . . . . . . . . . . . . . . . Allies | -11 -10 -10 -9 -9 -9 -8 -8 -8 -7 -7 -7 -7 -6 -6 -6 -6 -6 -5 -5 -5 -5 -5 -4 -4 -4 -4 -4 -4 -3 -3 -3 -2 -2 -------- Run | Yrd Mat Min Mat Min Exi Min Mat Sto Fac Low Low Dat Pro Fac Low Low Zio Pro Fac Upp Upp War Pro Fac Ext Cet Arc Hub Res Qua Sec Res Tes Total Allies 48 | . 1 . . 3 . . . . . . . . . . . . 2 . . 2 . 5 . . 30 5 . . . . . . . Largest Group 28 | . 1 1 1 3 3 3 . . . . . . . . . . 2 2 . 2 . 5 . . 26 28 26 25 . . . . . Highest-Rated Group 1596 | . 10 10 10 40 40 40 . . . . . . . . . . 59 59 . 62 . 286 . . 1245 1596 1377 1350 . . . . . Highest-Rated Ally 159 | . 10 10 10 16 16 16 . . . . . . . . . . 31 31 . 31 . 68 . . 159 153 96 96 . . . . . Total Orders 41 | . . 4 2 . . . . . . . . . . 1 . . . . . . . 4 . . 2 18 5 1 3 1 . . . STAY 24 | . . 2 1 . . . . . . . . . . . . . . . . . . 3 . . . 16 2 . . . . . . FOLLOW 9 | . . 2 1 . . . . . . . . . . . . . . . . . . 1 . . . 2 3 . . . . . . EXPLORE 1 | . . . . . . . . . . . . . . 1 . . . . . . . . . . . . . . . . . . . RETURN 7 | . . . . . . . . . . . . . . . . . . . . . . . . . 2 . . 1 3 1 . . . Ally Attacks 355 | . . . . 11 . 18 . . . . . . . . . . . 11 . 9 . 24 . . 150 36 21 75 . . . . . Total Damage 10641 | . . . . 98 . 167 . . . . . . . . . . . 105 . 83 . 1551 . . 4482 1131 563 2461 . . . . . Kills 72 | . . . . 2 . 2 . . . . . . . . . . . 1 . 1 . 8 . . 34 8 3 13 . . . . . Allies Corrupted 6 | . . . . . . 1 . . . . . . . . . . . . . . . . . . . . . 5 . . . . . Allies Melted 1 | . . . . . . . . . . . . . . . . . . . . . . . . . 1 . . . . . . . . Intel | -11 -10 -10 -9 -9 -9 -8 -8 -8 -7 -7 -7 -7 -6 -6 -6 -6 -6 -5 -5 -5 -5 -5 -4 -4 -4 -4 -4 -4 -3 -3 -3 -2 -2 ------- Run | Yrd Mat Min Mat Min Exi Min Mat Sto Fac Low Low Dat Pro Fac Low Low Zio Pro Fac Upp Upp War Pro Fac Ext Cet Arc Hub Res Qua Sec Res Tes Active Infowar (turns) 41945 | 15 593 974 225 . 6 994 551 . 2070 1810 1720 159 1967 2073 1855 1249 3118 1814 722 1852 1457 1050 1946 1969 2199 670 2913 510 3102 545 280 1140 397 Sensors 34703 | . . . . . . . . . 2070 1810 1720 159 1967 2071 1855 1249 3118 1755 639 1685 1455 1015 1885 1077 1720 619 2913 510 2911 396 . . 104 IFF 2 | . . . . . . . . . . . . . . 2 . . . . . . . . . . . . . . . . . . . Zeronet 4 | . . . . . . . . . . . . . . . . . . . . . . . . . . . . . . . 4 . . Terrain 2452 | . . . . . . . . . . . . . . . . . . . . 846 1455 . . . 1 . . . . . . . 150 Structural 131 | . . . 131 . . . . . . . . . . . . . . . . . . . . . . . . . . . . . . Seismic 3330 | 15 593 974 94 . 6 994 551 . . . . . . . . . . . . . . . . . . . . . . . . 103 . Machine Analysis 193 | . . . . . . . . . 193 . . . . . . . . . . . . . . . . . . . . . . . . Jamming 15735 | . . . . . . . . . . . . . . . . . . 59 720 1852 1457 1050 1946 1967 2199 148 . . 2443 321 276 1037 260 ECM 2 | . . . . . . . . . . . . . . . . . . . . . . . . 2 . . . . . . . . . Robot Analysis Total 7 | . 3 . 1 . . . . 2 . . . . . 1 . . . . . . . . . . . . . . . . . . . Derelict Logs Recovered 20 | . . 1 . 2 . . . . . 2 1 . 2 . 2 2 1 2 . 2 . . 3 . . . . . . . . . . Drone Launches 10 | . . . . . . . . . . . . . . 2 . . . . . . . . . . 2 . . 1 3 2 . . . Drone Recoveries 7 | . . . . . . . . . . . . . . . . . . . . . . . . . 2 . . 1 3 1 . . . Exploration | -11 -10 -10 -9 -9 -9 -8 -8 -8 -7 -7 -7 -7 -6 -6 -6 -6 -6 -5 -5 -5 -5 -5 -4 -4 -4 -4 -4 -4 -3 -3 -3 -2 -2 ------------- Run | Yrd Mat Min Mat Min Exi Min Mat Sto Fac Low Low Dat Pro Fac Low Low Zio Pro Fac Upp Upp War Pro Fac Ext Cet Arc Hub Res Qua Sec Res Tes Turns Passed 55427 | 104 1440 1094 2135 1307 352 1006 1215 917 2519 2034 1739 162 2075 2380 1892 1251 3126 1827 722 1852 1457 1238 1991 1969 2199 715 3440 710 3325 1379 1451 3992 412 Spaces Moved 23089 | 15 656 387 659 512 172 469 466 343 1204 930 837 78 925 1176 857 549 1448 752 411 1089 763 524 835 538 865 246 498 281 1581 492 589 1749 193 Core 74 | . . . . . . . . . . . . . . . . . . . . . . . . . . . 74 . . . . . . Treads 20815 | . 145 387 659 512 172 469 466 343 1204 930 837 78 925 280 857 549 1448 752 411 1089 763 524 835 538 865 246 424 281 1581 492 589 971 193 Legs 526 | 15 511 . . . . . . . . . . . . . . . . . . . . . . . . . . . . . . . . Wheels 1674 | . . . . . . . . . . . . . . 896 . . . . . . . . . . . . . . . . . 778 . Hover . | . . . . . . . . . . . . . . . . . . . . . . . . . . . . . . . . . . Flight . | . . . . . . . . . . . . . . . . . . . . . . . . . . . . . . . . . . Fastest Speed 105 | 120 120 160 200 200 200 200 200 160 160 200 203 203 203 145 213 213 213 213 154 154 154 154 217 214 165 162 165 165 161 170 155 105 160 Average Speed 198 | 120 176 261 203 200 200 200 200 199 163 201 203 203 205 165 213 213 213 220 154 154 154 201 221 218 193 163 570 165 172 171 170 180 160 Slowest Speed 2800 | 120 190 320 240 200 200 200 200 200 200 203 203 203 206 267 213 213 213 232 154 234 154 236 222 219 214 165 2800 165 246 173 232 280 160 Overloaded Moves . | . . . . . . . . . . . . . . . . . . . . . . . . . . . . . . . . . . Propulsion Burnouts . | . . . . . . . . . . . . . . . . . . . . . . . . . . . . . . . . . . Robots Hopped 1 | . . . . . . . . . . . . . . . . . . . . . . . . . . . . . 1 . . . . Potential Cave-ins 26 | . . . . . . . . . . . . . . . . . . . . . . . . . . . . . . . . 4 22 Cave-ins Triggered 1 | . . . . . . . . . . . . . . . . . . . . . . . . . . . . . . . . . 1 Teleports 4 | . . . . . . . . . . . . . . . . . . . . . . . . . . . . . . 1 3 . . Exploration Rate (%) 65 | 2 95 89 75 98 60 93 38 47 34 89 83 69 87 41 92 50 87 77 12 93 71 81 93 13 82 73 97 26 52 64 47 65 41 Regions Visited 33 Branch Regions 24 Pre-discovered Areas 11 | . 1 1 2 . 1 . . . . . . 1 . . 1 . 2 . . . . 1 1 . . . . . . . . . . Known Exits Taken 23 | . . . . . . . 1 . 1 1 1 1 1 1 1 1 1 1 1 1 1 1 1 1 1 1 1 1 1 . 1 . . Unknown Exits Taken 10 | 1 1 1 1 1 1 1 . 1 . . . . . . . . . . . . . . . . . . . . . 1 . 1 . Scrap Searched 37 | . . 3 . 1 . 1 . . . 3 2 . 2 . 4 2 5 5 . 4 2 . 3 . . . . . . . . . . Spaces Dug 258 | . 2 . 3 42 . . . 2 25 17 2 . 7 10 1 8 . 19 8 22 7 3 7 8 . 13 9 4 10 3 7 19 . Terrain Destroyed 1155 | . 2 . 3 68 . . . 11 103 79 45 . 69 34 1 8 . 69 60 78 20 13 49 66 12 13 11 58 29 78 58 112 6 Melee 118 | . . . . . . . . 2 25 17 2 . 7 10 1 8 . 17 . . . . . 2 . 13 9 2 2 . 1 . . Projectile 440 | . 2 . 3 . . . . . . . . . . 1 . . . 4 16 60 20 4 17 34 10 . 2 56 27 78 57 43 6 AOE 593 | . . . . 68 . . . 9 78 62 43 . 62 23 . . . 48 44 18 . 9 31 29 . . . . . . . 69 . Terrain Rammed . | . . . . . . . . . . . . . . . . . . . . . . . . . . . . . . . . . . Walls Destroyed . | . . . . . . . . . . . . . . . . . . . . . . . . . . . . . . . . . . Machines Disabled . | . . . . . . . . . . . . . . . . . . . . . . . . . . . . . . . . . . Actions | -11 -10 -10 -9 -9 -9 -8 -8 -8 -7 -7 -7 -7 -6 -6 -6 -6 -6 -5 -5 -5 -5 -5 -4 -4 -4 -4 -4 -4 -3 -3 -3 -2 -2 --------- Run | Yrd Mat Min Mat Min Exi Min Mat Sto Fac Low Low Dat Pro Fac Low Low Zio Pro Fac Upp Upp War Pro Fac Ext Cet Arc Hub Res Qua Sec Res Tes Total 29934 | 71 814 436 1220 747 178 533 639 482 1526 1029 867 82 1042 1463 901 611 1487 842 469 1190 1018 681 923 1088 1291 475 1045 393 2012 858 880 2389 252 Wait 2887 | 36 42 12 329 188 . 55 60 8 72 17 13 . 53 69 10 40 5 25 1 17 223 7 30 342 75 122 471 15 132 199 96 117 6 Move 23055 | 15 655 386 658 511 171 468 465 342 1203 929 836 77 924 1175 856 548 1447 751 410 1088 762 523 834 537 864 245 497 280 1578 491 588 1749 192 Hop 1 | . . . . . . . . . . . . . . . . . . . . . . . . . . . . . 1 . . . . Pick Up 350 | 1 16 6 36 3 . 3 12 16 27 10 2 . 5 25 2 1 3 1 7 2 1 8 2 10 13 10 3 4 29 16 19 46 11 Fast Attach 179 | 1 1 . 7 . . . 2 . 4 2 . 1 1 7 2 1 12 1 1 2 . 10 2 11 5 8 15 2 29 3 7 41 1 Attach 152 | . 4 2 10 2 1 . 4 1 8 1 1 1 . 10 . . 1 . 3 . . 1 1 3 3 . 1 1 8 20 24 33 8 Detach 84 | . 2 . 2 1 . . . . 6 . 1 1 . 8 . . 1 . . 1 . . . . 4 1 3 2 5 9 8 26 3 Swap 728 | . 12 6 22 8 2 3 20 34 71 27 7 1 30 63 15 6 2 20 14 13 2 9 20 49 34 20 9 24 82 15 14 69 5 Drop 434 | 2 7 4 26 2 . 1 18 27 26 11 1 1 5 27 5 2 14 4 8 4 2 18 4 23 19 19 14 5 56 7 5 67 . Fire 1448 | 15 61 19 124 30 . 1 51 47 73 14 3 . 14 44 1 . . 17 25 62 28 16 29 104 43 9 3 55 87 97 116 235 25 Melee 235 | . 1 . . . 4 . . 4 35 18 3 . 10 31 10 12 2 23 . . . . 1 4 1 33 29 2 5 1 1 5 . Ram . | . . . . . . . . . . . . . . . . . . . . . . . . . . . . . . . . . . Kick 4 | 1 3 . . . . . . . . . . . . . . . . . . . . . . . . . . . . . . . . Crush 33 | . 2 1 6 2 . 2 7 3 1 . . . . . . . . . . 1 . . . 5 . . . . . . 2 1 . Escape Stasis 5 | . . . . . . . . . . . . . . 4 . . . . . . . . . . . . . . . . . . 1 Rewire 319 | . . . . . . . . . . . . . . . . . . . . . . 89 . . 230 . . . . . . . . Trap 9 | . 8 . . . . . . . . . . . . . . 1 . . . . . . . . . . . . . . . . . Miscellaneous 11 | . . . . . . . . . . . . . . . . . . . . . . . . . . 8 . 3 . . . . . Route ------- -11/Scrapyard -10/Materials (discovered 5 exits: *Mat x3 / *Min / [*Sub]) -10/Mines (discovered 3 exits: *Mat x2 / [*Sub]) -9/Materials (discovered 3 exits: *Mat x2 / [*Min]) -9/Mines (discovered 3 exits: *Mat x2 / *Exi) -9/Exiles (discovered 2 exits: [*Min x2]) -8/Mines (discovered 2 exits: *Mat x2) -8/Materials (discovered 3 exits: *Fac / *Sto x2) -8/Storage -7/Factory (discovered 2 exits: *Low x2) -7/Lower Caves -7/Lower Caves (discovered 2 exits: *Fac / *Dat) -7/Data Miner -6/Proximity Caves -6/Factory (discovered 3 exits: *Fac / *Low x2) -6/Lower Caves (discovered 2 exits: *Low / *Zio) -6/Lower Caves -6/Zion -5/Proximity Caves -5/Factory (discovered 4 exits: *Fac x2 / *Upp x2) -5/Upper Caves -5/Upper Caves (discovered 2 exits: *Fac / *War) -5/Warlord -4/Proximity Caves -4/Factory -4/Extension (discovered 2 exits: *Res / *Cet) -4/Cetus (discovered 2 exits: *Res / *Arc) -4/Archives (discovered 3 exits: *Res / *Hub x2) -4/Hub_04(d) (discovered 4 exits: *Res x4) -3/Research (discovered 6 exits: *Res x3 / Arm / *Qua x2) -3/Quarantine (discovered 3 exits: *Res / *Sec / [*Frg]) -3/Section 7 -2/Research (discovered 2 exits: *Acc / *Tes) -2/Testing History --------- Turn | Location | Event 23 | -11/Scrapyard | Discovered new exit (range 2) 105 | -11/Scrapyard | Entered Materials 331 | -10/Materials | Build established: Mutant 549 | -10/Materials | Repaired Assault Rifle 691 | -10/Materials | Discovered new exit (range 11) 754 | -10/Materials | Discovered new exit (range 10) 894 | -10/Materials | Discovered new exit (range 16) 894 | -10/Materials | Discovered new exit (range 8) 1017 | -10/Materials | Central database locked down 1289 | -10/Materials | Discovered new exit (range 15) 1545 | -10/Materials | Entered Mines 1545 | -10/Mines | Accompanied by 1 ally 1605 | -10/Mines | Discovered new exit (range 16) 1670 | -10/Mines | Core integrity fell below 50% 2360 | -10/Mines | Discovered new exit (range 11) 2405 | -10/Mines | Learned location of Mines (-8) 2543 | -10/Mines | Discovered new exit (range 13) 2639 | -10/Mines | Entered Materials 2639 | -9/Materials | Accompanied by 1 ally 2639 | -9/Materials | Evolved 2 slots: Propulsion x1, Utility x1 2945 | -9/Materials | Lost 3 parts (1n2u) 3158 | -9/Materials | Discovered new exit (range 16) 3622 | -9/Materials | Repaired Lgt. Treads+ 3673 | -9/Materials | Discovered new exit (range 9) 4277 | -9/Materials | Discovered new exit (range 8) 4666 | -9/Materials | Build established: Scavenger-Mutant 4774 | -9/Materials | Entered Mines 4775 | -9/Mines | Assembled infested the area 5200 | -9/Mines | Discovered new exit (range 8) 5213 | -9/Mines | Destroyed 9 combat bots 5470 | -9/Mines | Deemed a non-threat by the Exiles lab entrance 5598 | -9/Mines | Assisted by bots powering up and referring to "LRC-V3" 5734 | -9/Mines | Discovered new exit (range 11) 5804 | -9/Mines | Learned Materials emergency access door positions 6071 | -9/Mines | Discovered new exit (range 5) 6081 | -9/Mines | Entered Exiles 6081 | -9/Exiles | Accompanied by 3 allies 6113 | -9/Exiles | Discovered new exit (range 15) 6129 | -9/Exiles | Met 8R-AWN 6165 | -9/Exiles | Met EX-HEX 6220 | -9/Exiles | Met EX-BIN 6282 | -9/Exiles | Met EX-DEC 6337 | -9/Exiles | Learned location of Zion (-6) 6405 | -9/Exiles | Discovered new exit (range 11) 6433 | -9/Exiles | Entered Mines 6433 | -8/Mines | Accompanied by 3 allies 6845 | -8/Mines | Discovered new exit (range 6) 7381 | -8/Mines | Discovered new exit (range 16) 7439 | -8/Mines | Entered Materials 7439 | -8/Materials | Evolved 2 slots: Utility x1, Weapon x1 7440 | -8/Materials | Identified exit to Storage 7463 | -8/Materials | Lost 3 allies 7808 | -8/Materials | Build established: Scavenger-Gunner 8229 | -8/Materials | Discovered exit to Storage (range 8) 8266 | -8/Materials | Discovered new exit (range 16) 8654 | -8/Materials | Entered Storage 9436 | -8/Storage | Discovered new exit (range 15) 9571 | -8/Storage | Entered Factory 9571 | -7/Factory | Evolved 2 slots: Utility x2 11214 | -7/Factory | Identified exit to Lower Caves 11736 | -7/Factory | Build established: Scavenger-Mutant 11811 | -7/Factory | Found Prototype Launcher 11811 | -7/Factory | Identified Rocket Array 11823 | -7/Factory | Found Rocket Array 11971 | -7/Factory | First assault squad dispatched 12090 | -7/Factory | Entered Lower Caves 12833 | -7/Lower Caves | Identified exit to Lower Caves 14124 | -7/Lower Caves | Entered another Lower Caves area 14150 | -7/Lower Caves | Discovered new exit (range 4) 14154 | -7/Lower Caves | Identified exit to Factory 14203 | -7/Lower Caves | Learned 4 Factory zone layouts 15228 | -7/Lower Caves | Encountered a Warlord checkpoint 15625 | -7/Lower Caves | Discovered new exit (range 11) 15667 | -7/Lower Caves | Identified exit to Data Miner 15863 | -7/Lower Caves | Entered Data Miner 15863 | -7/Data Miner | Discovered new exit (range 6) 15872 | -7/Data Miner | Identified exit to Proximity Caves 15903 | -7/Data Miner | Met Data Miner 15942 | -7/Data Miner | Learned location of Section 7 (-3) 15942 | -7/Data Miner | Acquired the access code to Warlord's prototype stash 15970 | -7/Data Miner | Received God Mode back door access code from Data Miner 16025 | -7/Data Miner | Entered Proximity Caves 16316 | -6/Proximity Caves | Attracted the attention of an 0b10 checkpoint 16803 | -6/Proximity Caves | Learned Factory emergency access door positions 16888 | -6/Proximity Caves | Build established: Derelict-Mutant 17849 | -6/Proximity Caves | Discovered exit to Factory (range 15) 18100 | -6/Proximity Caves | Entered Factory 18100 | -6/Factory | Evolved 2 slots: Power x1, Propulsion x1 18572 | -6/Factory | Build established: Mutant 18981 | -6/Factory | Spotted B-75 Beast 19025 | -6/Factory | Garrison activated, responded to threat 19357 | -6/Factory | Repaired Imp. Shield Generator? 19436 | -6/Factory | Identified exit to Lower Caves 19598 | -6/Factory | Watched by a mysterious "MATRIX" hacker. 19662 | -6/Factory | Discovered new exit (range 10) 19744 | -6/Factory | Build established: Hacker-Mutant 20480 | -6/Factory | Entered Lower Caves 20776 | -6/Lower Caves | Entered a destroyed Warlord outpost 21285 | -6/Lower Caves | A Derelict revealed a hidden shortcut to a safe place 21309 | -6/Lower Caves | Learned Factory stockpile data 21395 | -6/Lower Caves | Encountered a Warlord checkpoint 21626 | -6/Lower Caves | Identified exit to Zion 21765 | -6/Lower Caves | Discovered new exit (range 14) 22366 | -6/Lower Caves | Identified exit to Lower Caves 22372 | -6/Lower Caves | Entered another Lower Caves area 22393 | -6/Lower Caves | Learned Factory emergency access door positions 22853 | -6/Lower Caves | Discovered exit to Zion (range 15) 23030 | -6/Lower Caves | Learned Factory trap positions 23623 | -6/Lower Caves | Entered Zion 23703 | -6/Zion | Found CR-A16's Pointy Stick 23711 | -6/Zion | Discovered new exit (range 10) 23730 | -6/Zion | Identified exit to Proximity Caves 23867 | -6/Zion | System corruption cleaned by Quarantine Array 23970 | -6/Zion | Learned location of Quarantine (-3) 24916 | -6/Zion | Given the Hacking Drone Bay 25033 | -6/Zion | Gained Derelict followers 25245 | -6/Zion | Learned 12 Factory zone layouts 25333 | -6/Zion | Found Prototype Device 25333 | -6/Zion | Identified Mobile Refinery Mk. CCLXVII 26057 | -6/Zion | Met Imprinter 26358 | -6/Zion | Found Prototype Device 26358 | -6/Zion | Identified Hacking Drone Bay 26749 | -6/Zion | Entered Proximity Caves 26749 | -5/Proximity Caves | Accompanied by 2 allies 26808 | -5/Proximity Caves | Build established: Derelict-Tank 27091 | -5/Proximity Caves | Spotter reported a threat 27113 | -5/Proximity Caves | Spotter reported a threat 27511 | -5/Proximity Caves | Build established: Derelict-Mutant 27801 | -5/Proximity Caves | Spotted B-75 Beast 27841 | -5/Proximity Caves | Revealed the true nature of CR-A16's Pointy Stick 27841 | -5/Proximity Caves | Destroyed B-75 Beast 27877 | -5/Proximity Caves | Spotter reported a threat 28137 | -5/Proximity Caves | Build established: Tank 28229 | -5/Proximity Caves | Learned location of 1 exit from Factory 28493 | -5/Proximity Caves | Discovered new exit (range 9) 28504 | -5/Proximity Caves | Identified exit to Factory 28555 | -5/Proximity Caves | Build established: Derelict-Tank 28576 | -5/Proximity Caves | Entered Factory 28576 | -5/Factory | Evolved 2 slots: Propulsion x1, Utility x1 28577 | -5/Factory | Identified exit to Upper Caves 28578 | -5/Factory | Identified exit to Factory 28580 | -5/Factory | Loaded intel: 103 trap records 28876 | -5/Factory | Search patrols dispatched 29231 | -5/Factory | Build established: Derelict-Skirmisher 29298 | -5/Factory | Entered Upper Caves 29354 | -5/Upper Caves | Learned location of 1 exit from Proximity Caves 29678 | -5/Upper Caves | Entered an active Warlord outpost 29682 | -5/Upper Caves | A Commander dispatched an escort 29697 | -5/Upper Caves | Learned Factory emergency access door positions 29697 | -5/Upper Caves | Learned Armory emergency access door positions 29953 | -5/Upper Caves | Learned Factory trap positions 30931 | -5/Upper Caves | Encountered a Warlord checkpoint 30937 | -5/Upper Caves | Discovered new exit (range 9) 30948 | -5/Upper Caves | Identified exit to Upper Caves 31150 | -5/Upper Caves | Entered another Upper Caves area 31229 | -5/Upper Caves | Discovered exit to Factory (range 7) 32424 | -5/Upper Caves | Discovered new exit (range 8) 32438 | -5/Upper Caves | Identified exit to Warlord 32607 | -5/Upper Caves | Entered Warlord 32644 | -5/Warlord | Discovered new exit (range 15) 32896 | -5/Warlord | Opened Warlord's prototype stash 32903 | -5/Warlord | Build established: Skirmisher 32912 | -5/Warlord | Found Prototype Device 32912 | -5/Warlord | Identified Exp. Phase Shifter 32918 | -5/Warlord | Found Prototype Reactor 32918 | -5/Warlord | Identified Vortex Chain Reactor 33227 | -5/Warlord | Build established: Tank 33264 | -5/Warlord | Received a Watcher feed algorithm from an ecstatic Tinkerer 33307 | -5/Warlord | Warlord's base attacked by MAIN.C 33314 | -5/Warlord | Learned location of Testing (-2) 33314 | -5/Warlord | Learned Testing emergency access door positions 33319 | -5/Warlord | Learned Factory scanalyzer intel 33319 | -5/Warlord | Learned Factory garrison access intel 33337 | -5/Warlord | Met Warlord 33657 | -5/Warlord | Warlord forces counterattacked 33664 | -5/Warlord | Spotted Striker 33679 | -5/Warlord | Allies destroyed Striker 33702 | -5/Warlord | Spotted Executioner 33706 | -5/Warlord | Allies destroyed Executioner 33721 | -5/Warlord | Spotted Striker 33727 | -5/Warlord | Spotted B-86 Titan 33729 | -5/Warlord | Destroyed Striker 33759 | -5/Warlord | Found Prototype Processor 33767 | -5/Warlord | Lost 7 allies 33777 | -5/Warlord | Build established: Commander-Tank 33809 | -5/Warlord | Spotted Executioner 33841 | -5/Warlord | Identified exit to Proximity Caves 33845 | -5/Warlord | Entered Proximity Caves 33848 | -4/Proximity Caves | Spotter reported a threat 33862 | -4/Proximity Caves | Lost 12 allies 34126 | -4/Proximity Caves | Build established: Tank 34912 | -4/Proximity Caves | Spotted B-86 Titan 34920 | -4/Proximity Caves | Destroyed B-86 Titan 35198 | -4/Proximity Caves | Learned location of 1 exit from Research 35498 | -4/Proximity Caves | Received a Behemoth hack from an annoying Tinkerer 35836 | -4/Proximity Caves | Entered Factory 35836 | -4/Factory | Evolved 2 slots: Power x1, Propulsion x1 35837 | -4/Factory | Identified exit to Extension 35838 | -4/Factory | Loaded intel: 107 trap records 35840 | -4/Factory | Loaded intel: 4 scanalyzer locations 35841 | -4/Factory | Loaded intel: 3 garrison access locations 36518 | -4/Factory | Found Prototype Device 36518 | -4/Factory | Identified Exp. ECM Suite 36694 | -4/Factory | Spotted B-86 Titan 36754 | -4/Factory | Destroyed B-86 Titan 36819 | -4/Factory | Destroyed 7 combat bots 37203 | -4/Factory | Build established: Scavenger-Tank 37278 | -4/Factory | Identified Exp. Core Analyzer 37336 | -4/Factory | First assault squad dispatched 37362 | -4/Factory | Incoming assault squad redirected 37387 | -4/Factory | Found Prototype Launcher 37387 | -4/Factory | Identified Com. Tesla Bomb Launcher 37805 | -4/Factory | Entered Extension 38092 | -4/Extension | Build established: Scavenger-Skirmisher 38533 | -4/Extension | Rescued A7 38639 | -4/Extension | Rescued a captive Derelict 38670 | -4/Extension | Rescued a captive Derelict 38702 | -4/Extension | Rescued a captive Derelict 38704 | -4/Extension | Rescued a captive Derelict 38719 | -4/Extension | Rescued a captive Derelict 38974 | -4/Extension | Spotted B-86 Titan 38978 | -4/Extension | Spotted B-86 Titan 38990 | -4/Extension | Allies destroyed B-86 Titan 38996 | -4/Extension | Destroyed B-86 Titan 39289 | -4/Extension | Build established: Scavenger-Tank 39462 | -4/Extension | Rescued a captive Derelict 39463 | -4/Extension | Rescued a captive Derelict 39563 | -4/Extension | Rescued a captive Derelict 39565 | -4/Extension | Rescued a captive Derelict 39655 | -4/Extension | Build established: Commander-Tank 39805 | -4/Extension | First assault squad dispatched 39901 | -4/Extension | Discovered new exit (range 10) 39902 | -4/Extension | Discovered new exit (range 6) 39948 | -4/Extension | Identified exit to Research 39965 | -4/Extension | Identified exit to Cetus 40004 | -4/Extension | Entered Cetus 40004 | -4/Cetus | Accompanied by 24 allies (A7) 40009 | -4/Cetus | Acquired a Cetus Manufacturing Module code from A7 40032 | -4/Cetus | Spotted Cetus Guard 40032 | -4/Cetus | Spotted Cetus Guard 40034 | -4/Cetus | Spotted Cetus Guard 40038 | -4/Cetus | Spotted Cetus Guard 40042 | -4/Cetus | Allies destroyed Cetus Guard 40045 | -4/Cetus | Destroyed Cetus Guard 40046 | -4/Cetus | Allies destroyed Cetus Guard 40050 | -4/Cetus | Allies destroyed Cetus Guard 40221 | -4/Cetus | Escorted A7 to Cetus Mainframe 40269 | -4/Cetus | Started Cetus Manufacturing Module 40294 | -4/Cetus | Manufactured an Enhanced Grunt 40306 | -4/Cetus | Discovered new exit (range 16) 40319 | -4/Cetus | Manufactured an Enhanced Grunt 40328 | -4/Cetus | Identified exit to Archives 40344 | -4/Cetus | Manufactured an Enhanced Grunt 40369 | -4/Cetus | Manufactured an Enhanced Grunt 40394 | -4/Cetus | Manufactured an Enhanced Grunt 40399 | -4/Cetus | Spotted Cetus Guard 40399 | -4/Cetus | Spotted Cetus Guard 40400 | -4/Cetus | Allies destroyed Cetus Guard 40401 | -4/Cetus | Spotted Cetus Guard 40402 | -4/Cetus | Spotted Cetus Guard 40414 | -4/Cetus | Allies destroyed Cetus Guard 40415 | -4/Cetus | Destroyed Cetus Guard 40416 | -4/Cetus | Allies destroyed Cetus Guard 40437 | -4/Cetus | Discovered exit to Research (range 15) 40445 | -4/Cetus | Met Revision 17 40587 | -4/Cetus | Murdered A7 40588 | -4/Cetus | Extracted ID and sensor layout for unrecognized location from A7's data core 40719 | -4/Cetus | Entered Archives 40719 | -4/Archives | Accompanied by 26 allies 40769 | -4/Archives | Discovered new exit (range 16) 40791 | -4/Archives | Discovered new exit (range 16) 40886 | -4/Archives | Identified exit to Hub_04(d) 41062 | -4/Archives | Discovered exit to Research (range 15) 41269 | -4/Archives | Build established: Commander-Mutant 44159 | -4/Archives | Entered Hub_04(d) 44159 | -4/Hub_04(d) | Accompanied by 25 allies 44331 | -4/Hub_04(d) | Lost 4 allies 44374 | -4/Hub_04(d) | Network Hub disabled 44395 | -4/Hub_04(d) | Spotted Lightning 44395 | -4/Hub_04(d) | Spotted Lightning 44395 | -4/Hub_04(d) | Spotted Lightning 44398 | -4/Hub_04(d) | Discovered exit to Research (range 11) 44408 | -4/Hub_04(d) | Destroyed Lightning 44422 | -4/Hub_04(d) | Destroyed Lightning 44435 | -4/Hub_04(d) | Destroyed Lightning 44436 | -4/Hub_04(d) | Spotted Lightning 44437 | -4/Hub_04(d) | Spotted Lightning 44440 | -4/Hub_04(d) | Spotted Lightning 44444 | -4/Hub_04(d) | Lost 13 allies 44451 | -4/Hub_04(d) | System corruption reached 10% 44491 | -4/Hub_04(d) | Destroyed Lightning 44507 | -4/Hub_04(d) | Destroyed Lightning 44510 | -4/Hub_04(d) | Destroyed Lightning 44545 | -4/Hub_04(d) | Found Exp. Targeting Computer 44619 | -4/Hub_04(d) | Discovered exit to Research (range 16) 44657 | -4/Hub_04(d) | Found Prototype Device 44657 | -4/Hub_04(d) | Identified Exp. Thermal Shield 44659 | -4/Hub_04(d) | First assault squad dispatched 44684 | -4/Hub_04(d) | Build established: Scavenger-Tank 44869 | -4/Hub_04(d) | Entered Research 44869 | -3/Research | Evolved 2 slots: Utility x2 44870 | -3/Research | Identified exit to Armory 44871 | -3/Research | Identified exit to Quarantine 44972 | -3/Research | Identified exit to Research 45069 | -3/Research | Revision forces began assault on 0b10 45141 | -3/Research | Central database locked down 45167 | -3/Research | Met up with Revision 17++ 45569 | -3/Research | Research terminal network offline 46163 | -3/Research | Repaired Centrium Medium Armor Plating 46277 | -3/Research | Spotted B-86 Titan 46279 | -3/Research | Destroyed B-86 Titan 46334 | -3/Research | Found Prototype Protection 46334 | -3/Research | Identified Centrium Heavy Armor Plating 46404 | -3/Research | Spotted Striker 46414 | -3/Research | Destroyed Striker 46445 | -3/Research | Lost 8 allies 46909 | -3/Research | Spotted Striker 46915 | -3/Research | Destroyed Striker 46917 | -3/Research | Spotted Executioner 46920 | -3/Research | Destroyed Executioner 46931 | -3/Research | Found Prototype Device 46936 | -3/Research | Identified Adv. Kinecellerator 46956 | -3/Research | Found Exp. Core Analyzer 47030 | -3/Research | Repaired Adv. Sensor Array 47319 | -3/Research | Spotted Striker 47319 | -3/Research | Spotted Striker 47330 | -3/Research | Destroyed Striker 47412 | -3/Research | Spotted Striker 47420 | -3/Research | Destroyed Striker 47442 | -3/Research | Spotted Striker 47462 | -3/Research | Destroyed Striker 47491 | -3/Research | Found Gamma Bomb Array 47508 | -3/Research | Spotted Striker 47516 | -3/Research | Spotted Executioner 47555 | -3/Research | Destroyed Executioner 47559 | -3/Research | Spotted Striker 47564 | -3/Research | Destroyed Striker 47569 | -3/Research | Destroyed Striker 47730 | -3/Research | Spotted Executioner 47735 | -3/Research | Spotted Striker 47753 | -3/Research | Destroyed Striker 47756 | -3/Research | Destroyed Executioner 48192 | -3/Research | Spotted Executioner 48194 | -3/Research | Entered Quarantine 48276 | -3/Quarantine | Repaired Arm. Heavy Treads 48365 | -3/Quarantine | Unchained authorized (DW-4LL) 48482 | -3/Quarantine | Found Alien Artifact 48513 | -3/Quarantine | Cryocooling Duct disabled 48528 | -3/Quarantine | Ambient heat levels rising (+20) 48528 | -3/Quarantine | Non-combat units ordered to evacuate 48664 | -3/Quarantine | System corruption reached 10% 48694 | -3/Quarantine | First assault squad dispatched 48699 | -3/Quarantine | Lost 4 parts (1p3u) 48709 | -3/Quarantine | DW-4LL burst out of a wall 48741 | -3/Quarantine | Destroyed DW-4LL 48815 | -3/Quarantine | Destroyed 8 combat bots 48823 | -3/Quarantine | Found Prototype Processor 48873 | -3/Quarantine | Found Alien Reactor 48976 | -3/Quarantine | Discovered exit to Research (range 14) 48995 | -3/Quarantine | Found Alien Artifact 49001 | -3/Quarantine | Found Alien Artifact 49004 | -3/Quarantine | Found Alien Artifact 49018 | -3/Quarantine | Found Alien Artifact 49043 | -3/Quarantine | Found Alien Artifact 49131 | -3/Quarantine | Cryocooling Duct disabled 49146 | -3/Quarantine | Ambient heat levels rising (+20) 49146 | -3/Quarantine | Combat units ordered to evacuate 49238 | -3/Quarantine | Found Alien Slashing Weapon 49246 | -3/Quarantine | Quarantine Guard activated 49305 | -3/Quarantine | Identified Transdimensional Reconstructor (x2) 49305 | -3/Quarantine | Warped through subspace 49305 | -3/Quarantine | Spotted Quarantine Guard 49319 | -3/Quarantine | Destroyed Quarantine Guard 49437 | -3/Quarantine | Spotted Fortress 49566 | -3/Quarantine | Discovered new exit (range 5) 49566 | -3/Quarantine | Discovered new exit (range 6) 49566 | -3/Quarantine | Spotted Quarantine Guard 49566 | -3/Quarantine | Spotted Quarantine Guard 49573 | -3/Quarantine | Entered Section 7 49573 | -3/Section 7 | Identified Zeronet Interface 49630 | -3/Section 7 | Garrison activated, responded to threat 49665 | -3/Section 7 | Core integrity fell below 50% 49669 | -3/Section 7 | Warped through subspace 49693 | -3/Section 7 | Spotted S7 Guard 49702 | -3/Section 7 | Destroyed S7 Guard 49749 | -3/Section 7 | Lost 5 parts (2p3u) 49781 | -3/Section 7 | Found Alien Artifact 49790 | -3/Section 7 | Identified Hpw. Transdimensional Reconstructor (x2) 49790 | -3/Section 7 | Warped through subspace 50066 | -3/Section 7 | Found Alien Artifact 50167 | -3/Section 7 | Incoming investigation squad redirected 50297 | -3/Section 7 | Identified Integrated Mediator 50297 | -3/Section 7 | Identified Core Physics Calibrator 50298 | -3/Section 7 | Installed Integrated Mediator, increased core attachment efficiency 50352 | -3/Section 7 | System corruption reached 30% 50358 | -3/Section 7 | Garrison activated, responded to threat 50472 | -3/Section 7 | Identified Dimensional Node Initializer 50625 | -3/Section 7 | Found Centrium Heavy Armor Plating 50758 | -3/Section 7 | Initialized slip node 50794 | -3/Section 7 | Spotted Executioner 50818 | -3/Section 7 | Spotted Executioner 50823 | -3/Section 7 | First assault squad dispatched 50844 | -3/Section 7 | Incoming assault squad redirected 50875 | -3/Section 7 | Found Alien Artifact 50875 | -3/Section 7 | Identified Terrabomb 50875 | -3/Section 7 | Used Terrabomb 50878 | -3/Section 7 | Warped through subspace to slip node 50879 | -3/Section 7 | Core integrity fell below 20% 50879 | -3/Section 7 | Found Terrabomb 50894 | -3/Section 7 | Used Terrabomb 50896 | -3/Section 7 | Spotted Alpha 7 50906 | -3/Section 7 | Spotted Alpha 7 50958 | -3/Section 7 | Lost 4 parts (2n1u1w) 50961 | -3/Section 7 | Identified Sigix Broadsword 51008 | -3/Section 7 | Discovered exit to Research (range 8) 51024 | -3/Section 7 | Entered Research 51024 | -2/Research | Warlord forces began assault on 0b10 51024 | -2/Research | Evolved 2 slots: Utility x2 51052 | -2/Research | Lost 4 parts (1n1u2w) 51134 | -2/Research | Research machine network offline 51317 | -2/Research | Build established: Hacker-Mutant 51454 | -2/Research | Borebot progress halted 51664 | -2/Research | Spotted Striker 51675 | -2/Research | Borebot progress halted 51829 | -2/Research | Spotted Striker 51883 | -2/Research | Destroyed Striker 51926 | -2/Research | Build established: Mutant 52045 | -2/Research | Lost 4 allies 52047 | -2/Research | Found Quantum Capacitor 52167 | -2/Research | Found Prototype Processor 52167 | -2/Research | Identified Exp. Melee Analysis Suite 52206 | -2/Research | Borebot progress halted 52345 | -2/Research | Discovered new exit (range 5) 52349 | -2/Research | Identified exit to Access 52451 | -2/Research | Found Unknown Protection 52451 | -2/Research | Identified Imp. Powered Armor 52537 | -2/Research | Given Cave Seal Controls access code 52693 | -2/Research | Build established: Tank 52712 | -2/Research | Spotted B-90 Cyclops 52764 | -2/Research | Destroyed B-90 Cyclops 52784 | -2/Research | Spotted Striker 52788 | -2/Research | Spotted Striker 52810 | -2/Research | Destroyed Striker 52824 | -2/Research | Destroyed Striker 52862 | -2/Research | Destroyed 7 combat bots 52985 | -2/Research | Found Adv. Kinecellerator 52991 | -2/Research | Found Exp. Core Analyzer 52997 | -2/Research | Found Exp. Targeting Computer 53211 | -2/Research | Found Prototype Hackware 53211 | -2/Research | Identified Exp. Hacking Suite 53288 | -2/Research | Build established: Scavenger-Tank 53416 | -2/Research | Spotted Executioner 53429 | -2/Research | Spotted Striker 53431 | -2/Research | Lost 3 allies 53433 | -2/Research | Destroyed Executioner 53437 | -2/Research | Spotted Executioner 53444 | -2/Research | Destroyed Striker 53455 | -2/Research | Destroyed Executioner 53516 | -2/Research | Spotted Striker 53521 | -2/Research | Destroyed Striker 53593 | -2/Research | Spotted Striker 53612 | -2/Research | Destroyed Striker 53643 | -2/Research | Spotted Striker 53682 | -2/Research | Lost 4 allies 54140 | -2/Research | Spotted Striker 54153 | -2/Research | Destroyed Striker 54452 | -2/Research | Spotted Striker 54462 | -2/Research | Destroyed Striker 54483 | -2/Research | Destroyed 10 combat bots 54801 | -2/Research | Discovered new exit (range 9) 54842 | -2/Research | High security lockdown imminent 54871 | -2/Research | Lost 3 parts (1n1u1w) 54881 | -2/Research | Destroyed 12 combat bots 54890 | -2/Research | Spotted Striker 54890 | -2/Research | Spotted Striker 54902 | -2/Research | Core integrity fell below 50% 54913 | -2/Research | Destroyed Striker 54917 | -2/Research | Destroyed Striker 54922 | -2/Research | High security lockdown engaged 54928 | -2/Research | System corruption reached 10% 54945 | -2/Research | Spotted Striker 54951 | -2/Research | Destroyed Striker 54955 | -2/Research | Spotted Striker 54968 | -2/Research | Spotted Striker 54971 | -2/Research | Spotted Striker 54973 | -2/Research | Destroyed Striker 54988 | -2/Research | Destroyed Striker 54997 | -2/Research | Destroyed Striker 55016 | -2/Research | Core integrity fell below 20% 55016 | -2/Research | Entered Testing 55018 | -2/Testing | Destroyed 10 combat bots 55018 | -2/Testing | Identified Matter Drive 55044 | -2/Testing | Lost 9 parts (1p3n3u2w) 55183 | -2/Testing | Found Prototype Protection 55186 | -2/Testing | Found Prototype Protection 55188 | -2/Testing | Found Prototype Protection 55191 | -2/Testing | Found Prototype Protection 55194 | -2/Testing | Identified SHELL Armor 55227 | -2/Testing | Identified Med. Regenerative Plating (x2) 55263 | -2/Testing | Found Prototype Device 55360 | -2/Testing | Incoming investigation squad redirected 55393 | -2/Testing | Lost 3 parts (2p1w) 55395 | -2/Testing | Incoming investigation squad redirected 55413 | -2/Testing | Crushed by falling debris 55414 | -2/Testing | System corruption reached 30% 55428 | -2/Testing | Destroyed by H-88 Terminator with KE Penetrator Last Messages --------------- 55413_ System corrupted by crushing effect (+1). 55413_ Slug penetrates H-88 Terminator. 55417_ The unstable cave ceiling collapses. 55417_ H-88 Terminator crushed by falling debris. 55417_ Lgt. Antimatter Reactor destroyed. 55418_ Penetrated by Slug. 55419_ Slug penetrates Wall. 55420_ System corrupted: Substantial component data lost. 55420_ U-05 Engineer builds a Wall. 55421_ The unstable cave ceiling collapses. 55421_ Machine disabled. 55422_ Penetrated by Slug. 55422_ Matter Drive destroyed. 55422_ Penetrated by Slug. 55423_ Slug penetrates Machine. 55423_ Slug penetrates Earth. 55425_ U-05 Engineer builds a Wall. 55428_ Slug penetrates Wall. Map ----- +----------------------------------------------------+ | ???????????????? #????????????????????????????? | | ???????????????# #????????????????????????????? | | ???????????????# #????????????????????????????? | | ???????????????# #????????????????????????????? | | #####??????##### ##########???????????????????? | | ??????? # [ #####???????????????? | | ?????????? # """ " ##??????????????? | | ???????????? # ! """ """" #??????????????? | | ?????????????? # """ """" #??????????????? | | ##?????????????# + """ T"###??????????????? | | ############### # """ """"##??????????????? | | ####### # # ! """ "#"" #??????????????? | | # """"" # # "" ## ###??????????????? | | # ""T"" # # # #??????????????? | | # # #"#"#g#### #??????????????? | | #* # # ## #### #??????????????? | | ## # """ # # #?# ### ##??????????????? | | ?# #= """ # # #?# ## ###???????????????? | | ?# # """ # # #?# # #?????????????????? | | ?# + + # ###up ##?????????????????? | | ?# ###########+#u#####;h ##??????????????????? | | ?# ??? u ; ##???????????????????? | | ?# ##?????"" c""" ##?????????????????????? | | "# #???????" "" #??????????????????????? | | "# #???????""Y"""" #??????????????????????? | | ?+ ?????? """"""p @#??????????????????????? | | ?######????? p #??????????????????????? | | ?????????? p #??????????????????????? | | ?????????? #??????????????????????? | | ??????????? #??????????????????????? | | ???????????################??????????????????????? | | ???##????????????????????????????????????????????? | | ?????????????????????????????????????????????????? | | ?????????????????????????????????????????????????? | | ?????????????????????????????????????????????????? | | ? ???????????????????????????????????????????????? | | ?????????????????????????????????????????????????? | | ?????????????????????????????????????????????????? | | ?????????????????????????????????????????????????? | | ?????????????????????????????????????????????????? | | ????????????????????????????????????????????????? | | ?????????????????????????????????????????????????? | | ?????????????????????????????????????????????????? | | ?????????????????????????????????????????????????? | | ?????????????????????????????????????????????????? | | ?????????????????????????????????????????????????? | | ?? ??????????????????????????????????????????????? | | ??+??????????????????????????????????????????????? | | ?????????????????????????????????????????????????? | | ?????????????????????????????????????????????????? | +----------------------------------------------------+ Best States ------------- Heat Dissipation 111 Coolant Potential 200 Energy Generation 69 Energy Capacity 1575 Matter Stores 481 Matter Capacity 550 Sight Range 16 Robot Scan Range 16 Terrain Scan Range 24 Terrain Scan Density 10 ECM Strength 3 Jamming Range 16 Corruption Containment 12 Armor Coverage 2250 Resistance: KI 30 Resistance: TH 30 Resistance: EM 25 Propulsion Shielding 33 Point Defense Rating 240 Weapon Cycling 25 Phase Shifting 20 Evasion (%) 60 Targeting Accuracy 20 Melee Accuracy 8 Core Analysis 8 Recoil Reduction 6 Energy Filtering 45 Kinecelleration 50 Offensive Hacking 24 Trap Extractor Capacity 6 Item Schematics ----------------- Huge Storage Unit | -10/Materials | Hacked Hcp. Storage Unit | -9/Materials | Scanalyzed Hacking Suite | -8/Materials | Scanalyzed Combat Drone Bay | -7/Data Miner | Free Lgt. Regenerative Plating | -7/Data Miner | Free Cld. Cesium-ion Thruster | -7/Data Miner | Free Gravity Neutralizer | -7/Data Miner | Free Shock Maul | -7/Data Miner | Free Antigrav System | -7/Data Miner | Free Imp. Transmission Jammer | -7/Data Miner | Free Variable Charge Gun | -7/Data Miner | Free Cloaking Device | -7/Data Miner | Free Adv. System Shield | -7/Data Miner | Free Hvy. Gauss Cannon | -7/Data Miner | Free Adv. Terrain Scanner | -6/Zion | Archive Lrn. Proton Cannon | -6/Zion | Archive Fission Core | -6/Zion | Archive Field Propulsion Drive | -6/Zion | Archive Hpw. Shock Rifle | -6/Zion | Archive Adv. Signal Interpreter | -6/Zion | Archive Imp. Point Defense System | -6/Zion | Archive Hyp. Mass Driver | -6/Zion | Archive Thermic Laser | -6/Zion | Archive Imp. Plasma Cutter | -6/Zion | Archive Imp. Proton Missile Launcher | -6/Zion | Archive Hvy. Pick | -6/Zion | Archive Centrium Heavy Treads | -3/Research | Scanalyzed Robot Schematics ------------------ G-47 Trooper | -7/Data Miner | Free M-14 Sweeper | -7/Data Miner | Free L-41 Fighter | -7/Data Miner | Free H-55 Commando | -7/Data Miner | Free G-50 Soldier | -6/Zion | Archive A-15 Conveyor | -6/Zion | Archive K-01 Serf | -6/Zion | Archive D-83 Annihilator | -6/Zion | Archive Fabricated ------------ Nothing Repaired ---------- Assault Rifle | 26% | -10/Materials Lgt. Treads | 11% | -9/Materials Imp. Shield Generator | 27% | -6/Factory Centrium Medium Armor Plating | 50% | -3/Research Adv. Sensor Array | 45% | -3/Research Arm. Heavy Treads | 52% | -3/Quarantine Studied --------- Assault Rifle | -9/Materials | Hacked Lgt. Treads | -9/Materials | Hacked Mni. Grenade Launcher | -9/Materials | Hacked Imp. Treads | -9/Materials | Hacked Hvy. Assault Rifle | -8/Materials | Hacked Gauss Rifle | -7/Factory | Hacked Hvy. Rocket Launcher | -7/Factory | Hacked Flak Gun | -7/Factory | Hacked Arm. Treads | -7/Factory | Hacked Coil Gun | -6/Factory | Hacked Arm. Huge Wheel | -6/Factory | Hacked Hvy. Missile Launcher | -6/Factory | Hacked Rnf. Antimatter Reactor | -3/Research | Hacked Quantum Reactor | -3/Research | Hacked Hvy. Gauss Cannon | -3/Section 7 | Hacked Alien Tech Used ----------------- Transdimensional Reconstructor High-powered Transdimensional Reconstructor Integrated Mediator Core Physics Calibrator Dimensional Node Initializer Terrabomb Sigix Broadsword Matter Drive Achievements -------------- Anti-science Crusade Giant Slayer Well-fed Force Field Challenges ------------ None Game ------ Seed FusionBombLattice Manual? 0 Play Time 08:40:39 Cumulative 163.3 hours Start 2026.03.07 @ 01:48:57 End 2026.03.11 @ 13:02:04 Sessions 10 Manual Loads 0 Difficulty Rogue Special Mode None Game No. 112 Rogue 111 Adventurer 0 Explorer 1 Win Type - Total 15 Types 11/0/2/1/0/0/0/1/0/0 Lore% 56 Gallery% 58 Achievement% 53 Wizard Run 0 Options --------- Layout 2 ASCII 0 Keyboard 1 Movement Numpad Keybinds 0 Fullscreen 2 Font 24/Terminus Map View 50x44 Zoom Use 0% Tactical HUD 1 Map Filters NONE Filters NONE Steam 1 RUN: 4df740e3-5b5e-4a20-8635-24898736e502